Workbook

Sheet MEDIÇÃO INICIAL
C2: PLANILHA DE MEDIÇÃO DOS SERVIÇOS EXECUTADOS
C3: OBRA: SUBSTITUIÇÃO DE TELHAS E CONSTRUÇÃO DO CASTELO D’ÁGUA DO FÓRUM DA COMARCA DE ITATIAIA | M3: CONTRATO 003/0236/2020 = R$ 715.460,00
C4: FISCAL: RENATA OLIVEIRA / CLAUDIO MENEZES / EDGARD SILVA / JIVERLEI MARQUEZINI
C5: FISCAL SUBSTITUTO: SÉRGIO BRANDÃO
C6: CONTRATADA: CONSTROI ARQUITETURA E ENGENHARIA LTDA | AM6: VARIAÇÃO CONTRATUAL: | AP6: 0.1310003967
C7: SERVIÇOS EXECUTADOS EM QUANTITATIVO (SERV. PLANILHADOS E NÃO PLANILHADOS)
C8: CÓDIGO DO SERVIÇO | D8: DESCRIÇÃO DO SERVIÇO | E8: QUANTIDADE | I8: QUANTIDADE FINAL | J8: VALOR ORÇADO DO CONTRATO | N8: PERÍODO: 15/07/20 a 13/08/20 | Q8: PERÍODO: | T8: PERÍODO: | W8: PERÍODO: | Z8: PERÍODO: | AC8: PERÍODO: | AF8: PERÍODO: | AI8: PERÍODO: | AL8: ="ACUMULADO ATÉ " & AS10 -> ACUMULADO ATÉ 1ª MEDIÇÃO
E9: UNID. | F9: PLANILHA CONTRATUAL | J9: COM DESCONTO (APLICADO NO VALOR TOTAL) | L9: SEM DESCONTO | N9: QUANTIDADE | O9: VALOR MEDIDO | Q9: QUANTIDADE | R9: VALOR MEDIDO | T9: QUANTIDADE | U9: VALOR MEDIDO | W9: QUANTIDADE | X9: VALOR MEDIDO | Z9: QUANTIDADE | AA9: VALOR MEDIDO | AC9: QUANTIDADE | AD9: VALOR MEDIDO | AF9: QUANTIDADE | AG9: VALOR MEDIDO | AI9: QUANTIDADE | AJ9: VALOR MEDIDO | AL9: QUANTIDADE ACUMULADA | AM9: VALOR ACUMULADO | AO9: QUANTIDADE A REALIZAR | AP9: VALOR A REALIZAR
N10: 1ª MEDIÇÃO | O10: COM DESCONTO | P10: SEM DESCONTO | Q10: 2ª MEDIÇÃO | R10: COM DESCONTO | S10: SEM DESCONTO | T10: 3ª MEDIÇÃO | U10: COM DESCONTO | V10: SEM DESCONTO | W10: 4ª MEDIÇÃO | X10: COM DESCONTO | Y10: SEM DESCONTO | Z10: 5ª MEDIÇÃO | AA10: COM DESCONTO | AB10: SEM DESCONTO | AC10: 6ª MEDIÇÃO | AD10: COM DESCONTO | AE10: SEM DESCONTO | AF10: 7ª MEDIÇÃO | AG10: COM DESCONTO | AH10: SEM DESCONTO | AI10: 8ª MEDIÇÃO | AJ10: COM DESCONTO | AK10: SEM DESCONTO | AM10: COM DESCONTO | AN10: SEM DESCONTO | AP10: COM DESCONTO | AQ10: SEM DESCONTO | AS10: 1ª MEDIÇÃO | AT10: FILTRO
J11: PREÇO UNITÁRIO | K11: TOTAL (R$) | L11: PREÇO UNITÁRIO | M11: TOTAL (R$)
A13: Família | R13: =ROUND(Q13*M13,2) -> 0 | S13: =ROUND(Q13*O13,2) -> 0 | U13: =ROUND(T13*P13,2) -> 0 | V13: =ROUND(T13*R13,2) -> 0 | X13: =ROUND(W13*S13,2) -> 0 | Y13: =ROUND(W13*U13,2) -> 0 | AA13: =ROUND(Z13*V13,2) -> 0 | AB13: =ROUND(Z13*X13,2) -> 0 | AD13: =ROUND(AC13*Y13,2) -> 0 | AE13: =ROUND(AC13*AA13,2) -> 0 | AG13: =ROUND(AF13*AB13,2) -> 0 | AH13: =ROUND(AF13*AD13,2) -> 0 | AJ13: =ROUND(AI13*AE13,2) -> 0 | AK13: =ROUND(AI13*AG13,2) -> 0 | AM13: =SUMIF($N$9:$AK$9,"COM DESCONTO",N13:AK13) -> 0 | AS13: =INDEX($N$10:$AK$469,ROW()-8,MATCH($AS$10,$N$10:$AK$10,0)) -> 0 | AT13: MEDIDO
A14: Família | C14: 0 | D14: ADMINISTRAÇÃO | I14: =F14+G14+H14 -> 0 | K14: =ROUND((F14*$J14),2)+ROUND((G14*$J14),2)+ROUND((H14*$J14),2) -> 0 | M14: =ROUND(I14*L14,2) -> 0 | O14: =ROUND($N14*$J14,2) -> 0 | P14: =ROUND($N14*$L14,2) -> 0 | R14: =ROUND($Q14*$J14,2) -> 0 | S14: =ROUND($Q14*$L14,2) -> 0 | U14: =ROUND($T14*$J14,2) -> 0 | V14: =ROUND($T14*$L14,2) -> 0 | X14: =ROUND($W14*$J14,2) -> 0 | Y14: =ROUND($W14*$L14,2) -> 0 | AA14: =ROUND($Z14*$J14,2) -> 0 | AB14: =ROUND($Z14*$L14,2) -> 0 | AD14: =ROUND($AC14*$J14,2) -> 0 | AE14: =ROUND($AC14*$L14,2) -> 0 | AG14: =ROUND($AF14*$J14,2) -> 0 | AH14: =ROUND($AF14*$L14,2) -> 0 | AJ14: =ROUND($AI14*$J14,2) -> 0 | AK14: =ROUND($AI14*$L14,2) -> 0 | AL14: =SUMIF($N$9:$AK$9,"QUANTIDADE",N14:AK14) -> 0 | AM14: =SUMIF($N$9:$AK$9,"COM DESCONTO",N14:AK14) -> 0 | AN14: =SUMIF($N$9:$AK$9,"SEM DESCONTO",N14:AK14) -> 0 | AO14: =I14-AL14 -> 0 | AP14: =K14-AM14 -> 0 | AQ14: =M14-AN14 -> 0 | AS14: 0 | AT14: =IF(COUNTIF(AT15:AT19,"MEDIDO")>0,"MEDIDO","NÃO MEDIDO") -> NÃO MEDIDO
A15: Família | C15: 100 | D15: ADMINISTRAÇÃO LOCAL DA OBRA | M15: =ROUND(I15*L15,2) -> 0 | O15: =ROUND($N15*$J15,2) -> 0 | P15: =ROUND($N15*$L15,2) -> 0 | R15: =ROUND($Q15*$J15,2) -> 0 | S15: =ROUND($Q15*$L15,2) -> 0 | U15: =ROUND($T15*$J15,2) -> 0 | V15: =ROUND($T15*$L15,2) -> 0 | X15: =ROUND($W15*$J15,2) -> 0 | Y15: =ROUND($W15*$L15,2) -> 0 | AA15: =ROUND($Z15*$J15,2) -> 0 | AB15: =ROUND($Z15*$L15,2) -> 0 | AD15: =ROUND($AC15*$J15,2) -> 0 | AE15: =ROUND($AC15*$L15,2) -> 0 | AG15: =ROUND($AF15*$J15,2) -> 0 | AH15: =ROUND($AF15*$L15,2) -> 0 | AJ15: =ROUND($AI15*$J15,2) -> 0 | AK15: =ROUND($AI15*$L15,2) -> 0 | AL15: 0 | AM15: =SUMIF($N$9:$AK$9,"COM DESCONTO",N15:AK15) -> 0 | AN15: =SUMIF($N$9:$AK$9,"SEM DESCONTO",N15:AK15) -> 0 | AO15: =I15-AL15 -> 0 | AP15: =K15-AM15 -> 0 | AQ15: =M15-AN15 -> 0 | AS15: 0 | AT15: =IF(COUNTIF(AT16:AT19,"MEDIDO")>0,"MEDIDO","NÃO MEDIDO") -> NÃO MEDIDO
A16: Planilhado | C16: 01010.8.3.01U | D16: ADMINISTRAÇÃO - mão de obra mensalista | E16: MÊS | F16: 6 | I16: =F16+G16+H16 -> 6 | J16: 37387.11 | K16: =ROUND((F16*$J16),2)+ROUND((G16*$J16),2)+ROUND((H16*$J16),2) -> 224322.66 | M16: =ROUND(I16*L16,2) -> 0 | O16: =ROUND($N16*$J16,2) -> 0 | P16: =ROUND($N16*$L16,2) -> 0 | R16: =ROUND($Q16*$J16,2) -> 0 | S16: =ROUND($Q16*$L16,2) -> 0 | U16: =ROUND($T16*$J16,2) -> 0 | V16: =ROUND($T16*$L16,2) -> 0 | X16: =ROUND($W16*$J16,2) -> 0 | Y16: =ROUND($W16*$L16,2) -> 0 | AA16: =ROUND($Z16*$J16,2) -> 0 | AB16: =ROUND($Z16*$L16,2) -> 0 | AD16: =ROUND($AC16*$J16,2) -> 0 | AE16: =ROUND($AC16*$L16,2) -> 0 | AG16: =ROUND($AF16*$J16,2) -> 0 | AH16: =ROUND($AF16*$L16,2) -> 0 | AJ16: =ROUND($AI16*$J16,2) -> 0 | AK16: =ROUND($AI16*$L16,2) -> 0 | AL16: 0 | AM16: =SUMIF($N$10:$AK$11,"COM DESCONTO",N16:AK16) -> 0 | AN16: =SUMIF($N$10:$AK$11,"SEM DESCONTO",N16:AK16) -> 0 | AO16: =I16-AL16 -> 6 | AP16: =K16-AM16 -> 224322.66 | AQ16: =M16-AN16 -> 0 | AS16: 0 | AT16: =IF(AS16<>0,"MEDIDO","NÃO MEDIDO") -> NÃO MEDIDO
A17: Planilhado | C17: 01010.8.3.02U | D17: ADMINISTRAÇÃO - transportes, refeições e prêmio assiduidade | E17: MÊS | F17: 6 | I17: =F17+G17+H17 -> 6 | J17: 16362.63 | K17: 98175.78 | M17: 0 | O17: 0 | P17: 0 | R17: 0 | S17: 0 | U17: 0 | V17: 0 | X17: 0 | Y17: 0 | AA17: 0 | AB17: 0 | AD17: 0 | AE17: 0 | AG17: 0 | AH17: 0 | AJ17: 0 | AK17: 0 | AL17: 0 | AM17: =SUMIF($N$10:$AK$11,"COM DESCONTO",N17:AK17) -> 0 | AN17: =SUMIF($N$10:$AK$11,"SEM DESCONTO",N17:AK17) -> 0 | AO17: =I17-AL17 -> 6 | AP17: =K17-AM17 -> 98175.78 | AQ17: =M17-AN17 -> 0 | AS17: 0 | AT17: NÃO MEDIDO
A18: Planilhado | C18: 01010.8.3.04U | D18: ADMINISTRAÇÃO - equipamentos de proteção individual | E18: MÊS | F18: 6 | I18: 6 | J18: 2585.65 | K18: 15513.9 | M18: 0 | O18: 0 | P18: 0 | R18: 0 | S18: 0 | U18: 0 | V18: 0 | X18: 0 | Y18: 0 | AA18: 0 | AB18: 0 | AD18: 0 | AE18: 0 | AG18: 0 | AH18: 0 | AJ18: 0 | AK18: 0 | AL18: 0 | AM18: =SUMIF($N$10:$AK$11,"COM DESCONTO",N18:AK18) -> 0 | AN18: =SUMIF($N$10:$AK$11,"SEM DESCONTO",N18:AK18) -> 0 | AO18: =I18-AL18 -> 6 | AP18: =K18-AM18 -> 15513.9 | AQ18: =M18-AN18 -> 0 | AS18: 0 | AT18: NÃO MEDIDO
A19: Planilhado | C19: 01010.8.3.05U | D19: ADMINISTRAÇÃO - máquinas e ferramentas | E19: MÊS | F19: 6 | I19: 6 | J19: 2114.46 | K19: 12686.76 | M19: 0 | O19: 0 | P19: 0 | R19: 0 | S19: 0 | U19: 0 | V19: 0 | X19: 0 | Y19: 0 | AA19: 0 | AB19: 0 | AD19: 0 | AE19: 0 | AG19: 0 | AH19: 0 | AJ19: 0 | AK19: 0 | AL19: 0 | AM19: 0 | AN19: 0 | AO19: 6 | AP19: 12686.76 | AQ19: 0 | AS19: 0 | AT19: NÃO MEDIDO
A20: Família | C20: 1 | D20: SERVIÇOS INICIAIS | AL20: 0 | AM20: 0 | AN20: 0 | AO20: 0 | AP20: 0 | AQ20: 0 | AS20: 0 | AT20: =IF(COUNTIF(AT21:AT26,"MEDIDO")>0,"MEDIDO","NÃO MEDIDO") -> NÃO MEDIDO
A21: Família | C21: 10100 | D21: SERVIÇOS TÉCNICOS | AL21: 0 | AM21: 0 | AN21: 0 | AO21: 0 | AP21: 0 | AQ21: 0 | AS21: 0 | AT21: =IF(COUNTIF(AT22:AT22,"MEDIDO")>0,"MEDIDO","NÃO MEDIDO") -> NÃO MEDIDO
A22: Planilhado | C22: 01010.8.1.02U | D22: Projeto de "as built" | E22: M2 | F22: 335.2 | I22: =F22+G22+H22 -> 335.2 | J22: 1.68 | K22: =ROUND((F22*$J22),2)+ROUND((G22*$J22),2)+ROUND((H22*$J22),2) -> 563.14 | M22: =ROUND(I22*L22,2) -> 0 | O22: =ROUND($N22*$J22,2) -> 0 | P22: =ROUND($N22*$L22,2) -> 0 | R22: =ROUND($Q22*$J22,2) -> 0 | S22: =ROUND($Q22*$L22,2) -> 0 | U22: =ROUND($T22*$J22,2) -> 0 | V22: =ROUND($T22*$L22,2) -> 0 | X22: =ROUND($W22*$J22,2) -> 0 | Y22: =ROUND($W22*$L22,2) -> 0 | AA22: =ROUND($Z22*$J22,2) -> 0 | AB22: =ROUND($Z22*$L22,2) -> 0 | AD22: =ROUND($AC22*$J22,2) -> 0 | AE22: =ROUND($AC22*$L22,2) -> 0 | AG22: =ROUND($AF22*$J22,2) -> 0 | AH22: =ROUND($AF22*$L22,2) -> 0 | AJ22: =ROUND($AI22*$J22,2) -> 0 | AK22: =ROUND($AI22*$L22,2) -> 0 | AL22: =SUMIF($N$9:$AK$9,"QUANTIDADE",N22:AK22) -> 0 | AM22: 0 | AN22: 0 | AO22: 335.2 | AP22: 563.14 | AQ22: 0 | AS22: 0 | AT22: =IF(AS22<>0,"MEDIDO","NÃO MEDIDO") -> NÃO MEDIDO
A23: Família | C23: 10400 | D23: DESPESAS DIVERSAS | I23: =F23+G23+H23 -> 0 | K23: =ROUND((F23*$J23),2)+ROUND((G23*$J23),2)+ROUND((H23*$J23),2) -> 0 | M23: 0 | O23: 0 | P23: 0 | R23: 0 | S23: 0 | U23: 0 | V23: 0 | X23: 0 | Y23: 0 | AA23: 0 | AB23: 0 | AD23: 0 | AE23: 0 | AG23: 0 | AH23: 0 | AJ23: 0 | AK23: 0 | AL23: 0 | AM23: 0 | AN23: 0 | AO23: 0 | AP23: 0 | AQ23: 0 | AS23: 0 | AT23: =IF(COUNTIF(AT24:AT24,"MEDIDO")>0,"MEDIDO","NÃO MEDIDO") -> NÃO MEDIDO
A24: Planilhado | C24: 0104211U | D24: Despesa c/serviços profissionais (despachante) e taxas p/licenças, legalizações junto a órgãos públicos | E24: UN | F24: 1 | I24: =F24+G24+H24 -> 1 | J24: 3052.66 | K24: =ROUND((F24*$J24),2)+ROUND((G24*$J24),2)+ROUND((H24*$J24),2) -> 3052.66 | M24: =ROUND(I24*L24,2) -> 0 | O24: 0 | P24: 0 | R24: 0 | S24: 0 | U24: 0 | V24: 0 | X24: 0 | Y24: 0 | AA24: 0 | AB24: 0 | AD24: 0 | AE24: 0 | AG24: 0 | AH24: 0 | AJ24: 0 | AK24: 0 | AL24: 0 | AM24: 0 | AN24: 0 | AO24: 1 | AP24: 3052.66 | AQ24: 0 | AS24: 0 | AT24: =IF(AS24<>0,"MEDIDO","NÃO MEDIDO") -> NÃO MEDIDO
A25: Família | C25: 10500 | D25: ENSAIOS DE LABORATÓRIO OU CAMPO | O25: 0 | P25: 0 | R25: 0 | S25: 0 | U25: 0 | V25: 0 | X25: 0 | Y25: 0 | AA25: 0 | AB25: 0 | AD25: 0 | AE25: 0 | AG25: 0 | AH25: 0 | AJ25: 0 | AK25: 0 | AL25: 0 | AM25: 0 | AN25: 0 | AO25: 0 | AP25: 0 | AQ25: 0 | AS25: 0 | AT25: =IF(COUNTIF(AT26,"MEDIDO")>0,"MEDIDO","NÃO MEDIDO") -> NÃO MEDIDO
A26: Planilhado | C26: 03310.8.15.5U | D26: Controle tecnológico de obras em concreto armado, considerando coleta, moldagem e capeamento, transporte até 100km, medido por m³ de concreto colocado nas formas (01.001.0151-0 EMOP) | E26: M3 | F26: 12.36 | I26: 12.36 | J26: 23.28 | K26: =ROUND((F26*$J26),2)+ROUND((G26*$J26),2)+ROUND((H26*$J26),2) -> 287.74 | M26: =ROUND(I26*L26,2) -> 0 | O26: 0 | P26: 0 | R26: 0 | S26: 0 | U26: 0 | V26: 0 | X26: 0 | Y26: 0 | AA26: 0 | AB26: 0 | AD26: 0 | AE26: 0 | AG26: 0 | AH26: 0 | AJ26: 0 | AK26: 0 | AL26: 0 | AM26: 0 | AN26: 0 | AO26: 12.36 | AP26: 287.74 | AQ26: 0 | AS26: 0 | AT26: =IF(AS26<>0,"MEDIDO","NÃO MEDIDO") -> NÃO MEDIDO
A27: Família | C27: 2 | D27: INSTALAÇÃO DO CANTEIRO DE OBRA | I27: 0 | K27: =ROUND((F27*$J27),2)+ROUND((G27*$J27),2)+ROUND((H27*$J27),2) -> 0 | M27: 0 | O27: 0 | P27: 0 | R27: 0 | S27: 0 | U27: 0 | V27: 0 | X27: 0 | Y27: 0 | AA27: 0 | AB27: 0 | AD27: 0 | AE27: 0 | AG27: 0 | AH27: 0 | AJ27: 0 | AK27: 0 | AL27: 0 | AM27: 0 | AN27: 0 | AO27: 0 | AP27: 0 | AQ27: 0 | AS27: 0 | AT27: =IF(COUNTIF(AT28:AT158,"MEDIDO")>0,"MEDIDO","NÃO MEDIDO") -> NÃO MEDIDO
A28: Família | C28: 20100 | D28: DEMOLIÇÕES E RETIRADAS | I28: 0 | K28: 0 | M28: 0 | O28: 0 | P28: 0 | R28: 0 | S28: 0 | U28: 0 | V28: 0 | X28: 0 | Y28: 0 | AA28: 0 | AB28: 0 | AD28: 0 | AE28: 0 | AG28: 0 | AH28: 0 | AJ28: 0 | AK28: 0 | AL28: 0 | AM28: 0 | AN28: 0 | AO28: 0 | AP28: 0 | AQ28: 0 | AS28: 0 | AT28: =IF(COUNTIF(AT29:AT55,"MEDIDO")>0,"MEDIDO","NÃO MEDIDO") -> NÃO MEDIDO
A29: Planilhado | C29: 01544.8.700.1U | D29: Desmontagem de andaime | E29: M2 | F29: 10.8 | I29: 10.8 | J29: 2.23 | K29: 24.08 | M29: 0 | O29: 0 | P29: 0 | R29: 0 | S29: 0 | U29: 0 | V29: 0 | X29: 0 | Y29: 0 | AA29: 0 | AB29: 0 | AD29: 0 | AE29: 0 | AG29: 0 | AH29: 0 | AJ29: 0 | AK29: 0 | AL29: 0 | AM29: 0 | AN29: 0 | AO29: 10.8 | AP29: 24.08 | AQ29: 0 | AS29: 0 | AT29: NÃO MEDIDO
A30: Planilhado | C30: 02.102.000002.SER-U | D30: Demolição de alvenaria sem reaproveitamento (02.102.000002.SER PINI) | E30: M3 | F30: 3.3 | I30: =F30+G30+H30 -> 3.3 | J30: 55.08 | K30: 181.76 | M30: 0 | O30: 0 | P30: 0 | R30: 0 | S30: 0 | U30: 0 | V30: 0 | X30: 0 | Y30: 0 | AA30: 0 | AB30: 0 | AD30: 0 | AE30: 0 | AG30: 0 | AH30: 0 | AJ30: 0 | AK30: 0 | AL30: 0 | AM30: 0 | AN30: 0 | AO30: 3.3 | AP30: 181.76 | AQ30: 0 | AR30: =SUM(AM30:AM33)*(1-AP6) -> 0 | AS30: 0 | AT30: NÃO MEDIDO
A31: Planilhado | C31: 02.102.0000040.SER-U | D31: Remoção de telha cerâmica | E31: M2 | F31: 309 | I31: 309 | J31: 11.12 | K31: 3436.08 | M31: 0 | O31: 0 | P31: 0 | R31: 0 | S31: 0 | U31: 0 | V31: 0 | X31: 0 | Y31: 0 | AA31: 0 | AB31: 0 | AD31: 0 | AE31: 0 | AG31: 0 | AH31: 0 | AJ31: 0 | AK31: 0 | AL31: 0 | AM31: 0 | AN31: 0 | AO31: 309 | AP31: 3436.08 | AQ31: 0 | AS31: 0 | AT31: NÃO MEDIDO
A32: Planilhado | C32: 02.102.0000041.SER-U | D32: Remoção de calhas e condutores (05.001.0072-0 EMOP) | E32: M | F32: 41.2 | I32: 41.2 | J32: 3.23 | K32: 133.08 | M32: 0 | O32: 0 | P32: 0 | R32: 0 | S32: 0 | U32: 0 | V32: 0 | X32: 0 | Y32: 0 | AA32: 0 | AB32: 0 | AD32: 0 | AE32: 0 | AG32: 0 | AH32: 0 | AJ32: 0 | AK32: 0 | AL32: 0 | AM32: 0 | AN32: 0 | AO32: 41.2 | AP32: 133.08 | AQ32: 0 | AS32: 0 | AT32: NÃO MEDIDO
A33: Planilhado | C33: 02.102.000006.SER | D33: Demolição de concreto com utilização de martelo rompedor pneumático | E33: M3 | F33: 10.4 | I33: 10.4 | J33: 632.92 | K33: 6582.37 | M33: 0 | O33: 0 | P33: 0 | R33: 0 | S33: 0 | U33: 0 | V33: 0 | X33: 0 | Y33: 0 | AA33: 0 | AB33: 0 | AD33: 0 | AE33: 0 | AG33: 0 | AH33: 0 | AJ33: 0 | AK33: 0 | AL33: 0 | AM33: 0 | AN33: 0 | AO33: 10.4 | AP33: 6582.37 | AQ33: 0 | AR33: =SUM(AM33:AM170)*(1-AP6) -> 0 | AS33: 0 | AT33: NÃO MEDIDO
A34: Planilhado | C34: 02.102.000010.SER | D34: Demolição de estrutura de madeira para telhado | E34: M2 | F34: 155.5 | I34: 155.5 | J34: 24.95 | K34: 3879.73 | M34: 0 | O34: 0 | P34: 0 | R34: 0 | S34: 0 | U34: 0 | V34: 0 | X34: 0 | Y34: 0 | AA34: 0 | AB34: 0 | AD34: 0 | AE34: 0 | AG34: 0 | AH34: 0 | AJ34: 0 | AK34: 0 | AL34: 0 | AM34: 0 | AN34: 0 | AO34: 155.5 | AP34: 3879.73 | AQ34: 0 | AS34: 0 | AT34: NÃO MEDIDO
A35: Planilhado | C35: 02.102.0000120.SER-U | D35: Retirada cuidadosa de placa de forro removível | E35: M2 | F35: 52.4 | I35: 52.4 | J35: 1.85 | K35: 96.94 | M35: 0 | O35: 0 | P35: 0 | R35: 0 | S35: 0 | U35: 0 | V35: 0 | X35: 0 | Y35: 0 | AA35: 0 | AB35: 0 | AD35: 0 | AE35: 0 | AG35: 0 | AH35: 0 | AJ35: 0 | AK35: 0 | AL35: 0 | AM35: 0 | AN35: 0 | AO35: 52.4 | AP35: 96.94 | AQ35: 0 | AS35: 0 | AT35: NÃO MEDIDO
A36: Planilhado | C36: 02.102.0000200.SER-U | D36: Demolição de piso em ardósia | E36: M2 | F36: 23 | I36: 23 | J36: 12.85 | K36: 295.55 | M36: 0 | O36: 0 | P36: 0 | R36: 0 | S36: 0 | U36: 0 | V36: 0 | X36: 0 | Y36: 0 | AA36: 0 | AB36: 0 | AD36: 0 | AE36: 0 | AG36: 0 | AH36: 0 | AJ36: 0 | AK36: 0 | AL36: 0 | AM36: 0 | AN36: 0 | AO36: 23 | AP36: 295.55 | AQ36: 0 | AS36: 0 | AT36: NÃO MEDIDO
A37: Planilhado | C37: 02.102.000031.SER | D37: Remoção de esquadria metálica sem reaproveitamento | E37: M2 | F37: 7.5 | I37: 7.5 | J37: 9.18 | K37: 68.85 | M37: 0 | O37: 0 | P37: 0 | R37: 0 | S37: 0 | U37: 0 | V37: 0 | X37: 0 | Y37: 0 | AA37: 0 | AB37: 0 | AD37: 0 | AE37: 0 | AG37: 0 | AH37: 0 | AJ37: 0 | AK37: 0 | AL37: 0 | AM37: 0 | AN37: 0 | AO37: 7.5 | AP37: 68.85 | AQ37: 0 | AS37: 0 | AT37: NÃO MEDIDO
A38: Planilhado | C38: 02.102.000032.SER | D38: Remoção de esquadria de madeira, inclusive batente | E38: M2 | F38: 1.7 | I38: =F38+G38+H38 -> 1.7 | J38: 14.69 | K38: =ROUND((F38*$J38),2)+ROUND((G38*$J38),2)+ROUND((H38*$J38),2) -> 24.97 | M38: 0 | O38: 0 | P38: 0 | R38: 0 | S38: 0 | U38: 0 | V38: 0 | X38: 0 | Y38: 0 | AA38: 0 | AB38: 0 | AD38: 0 | AE38: 0 | AG38: 0 | AH38: 0 | AJ38: 0 | AK38: 0 | AL38: 0 | AM38: 0 | AN38: 0 | AO38: 1.7 | AP38: 24.97 | AQ38: 0 | AS38: 0 | AT38: NÃO MEDIDO
A39: Planilhado | C39: 020103U | D39: Retirada de caixas 4x2'', 4x4''x 15x15 cm, octogonal - embutidas e aparentes | E39: UN | F39: 2 | I39: 2 | J39: 1.7 | K39: 3.4 | M39: 0 | O39: 0 | P39: 0 | R39: 0 | S39: 0 | U39: 0 | V39: 0 | X39: 0 | Y39: 0 | AA39: 0 | AB39: 0 | AD39: 0 | AE39: 0 | AG39: 0 | AH39: 0 | AJ39: 0 | AK39: 0 | AL39: 0 | AM39: 0 | AN39: 0 | AO39: 2 | AP39: 3.4 | AQ39: 0 | AS39: 0 | AT39: NÃO MEDIDO
A40: Planilhado | C40: 020159U | D40: Retirada de perfilado ou canaleta incl. conex., fix. e tomadas | E40: M | F40: 9 | I40: 9 | J40: 2.35 | K40: 21.15 | M40: 0 | O40: 0 | P40: 0 | R40: 0 | S40: 0 | U40: 0 | V40: 0 | X40: 0 | Y40: 0 | AA40: 0 | AB40: 0 | AD40: 0 | AE40: 0 | AG40: 0 | AH40: 0 | AJ40: 0 | AK40: 0 | AL40: 0 | AM40: 0 | AN40: 0 | AO40: 9 | AP40: 21.15 | AQ40: 0 | AS40: 0 | AT40: NÃO MEDIDO
A41: Planilhado | C41: 020622U | D41: Retirada de cabo telefônico de qualquer tipo até 20 pares | E41: M | F41: 70 | I41: 70 | J41: 0.98 | K41: 68.6 | M41: 0 | O41: 0 | P41: 0 | R41: 0 | S41: 0 | U41: 0 | V41: 0 | X41: 0 | Y41: 0 | AA41: 0 | AB41: 0 | AD41: 0 | AE41: 0 | AG41: 0 | AH41: 0 | AJ41: 0 | AK41: 0 | AL41: 0 | AM41: 0 | AN41: 0 | AO41: 70 | AP41: 68.6 | AQ41: 0 | AS41: 0 | AT41: NÃO MEDIDO
A42: Planilhado | C42: 020628U | D42: Retirada de fio de sonorização/alarme de qualquer tipo (Paralelo, PP, RG, RGC, RGB, UTP) | E42: M | F42: 110 | I42: 110 | J42: 1.37 | K42: 150.7 | M42: 0 | O42: 0 | P42: 0 | R42: 0 | S42: 0 | U42: 0 | V42: 0 | X42: 0 | Y42: 0 | AA42: 0 | AB42: 0 | AD42: 0 | AE42: 0 | AG42: 0 | AH42: 0 | AJ42: 0 | AK42: 0 | AL42: 0 | AM42: 0 | AN42: 0 | AO42: 110 | AP42: 150.7 | AQ42: 0 | AS42: 0 | AT42: NÃO MEDIDO
A43: Planilhado | C43: 020630U | D43: Retirada de eletroduto / duto de qualquer tipo (aparente) diâmetro de até 1'' | E43: M | F43: 8 | I43: 8 | J43: 1.96 | K43: 15.68 | M43: 0 | O43: 0 | P43: 0 | R43: 0 | S43: 0 | U43: 0 | V43: 0 | X43: 0 | Y43: 0 | AA43: 0 | AB43: 0 | AD43: 0 | AE43: 0 | AG43: 0 | AH43: 0 | AJ43: 0 | AK43: 0 | AL43: 0 | AM43: 0 | AN43: 0 | AO43: 8 | AP43: 15.68 | AQ43: 0 | AS43: 0 | AT43: NÃO MEDIDO
A44: Planilhado | C44: 020660U | D44: Retirada de tubulação e conexões de PVC até 75 mm | E44: M | F44: 24 | I44: 24 | J44: 2.42 | K44: 58.08 | M44: 0 | O44: 0 | P44: 0 | R44: 0 | S44: 0 | U44: 0 | V44: 0 | X44: 0 | Y44: 0 | AA44: 0 | AB44: 0 | AD44: 0 | AE44: 0 | AG44: 0 | AH44: 0 | AJ44: 0 | AK44: 0 | AL44: 0 | AM44: 0 | AN44: 0 | AO44: 24 | AP44: 58.08 | AQ44: 0 | AS44: 0 | AT44: NÃO MEDIDO
A45: Planilhado | C45: 020661U | D45: Retirada de tubulação e conexões de PVC de 85 até 150mm | E45: M | F45: 9 | I45: 9 | J45: 5.36 | K45: 48.24 | M45: 0 | O45: 0 | P45: 0 | R45: 0 | S45: 0 | U45: 0 | V45: 0 | X45: 0 | Y45: 0 | AA45: 0 | AB45: 0 | AD45: 0 | AE45: 0 | AG45: 0 | AH45: 0 | AJ45: 0 | AK45: 0 | AL45: 0 | AM45: 0 | AN45: 0 | AO45: 9 | AP45: 48.24 | AQ45: 0 | AS45: 0 | AT45: NÃO MEDIDO
A46: Planilhado | C46: 020666U | D46: Retirada de reservatório dágua em fibras de vidro/polietileno | E46: UN | F46: 1 | I46: 1 | J46: 57.6 | K46: 57.6 | M46: 0 | O46: 0 | P46: 0 | R46: 0 | S46: 0 | U46: 0 | V46: 0 | X46: 0 | Y46: 0 | AA46: 0 | AB46: 0 | AD46: 0 | AE46: 0 | AG46: 0 | AH46: 0 | AJ46: 0 | AK46: 0 | AL46: 0 | AM46: 0 | AN46: 0 | AO46: 1 | AP46: 57.6 | AQ46: 0 | AS46: 0 | AT46: NÃO MEDIDO
A47: Planilhado | C47: 020678U | D47: Desinstalação de antena | E47: UN | F47: 2 | I47: 2 | J47: 37.18 | K47: 74.36 | M47: 0 | O47: 0 | P47: 0 | R47: 0 | S47: 0 | U47: 0 | V47: 0 | X47: 0 | Y47: 0 | AA47: 0 | AB47: 0 | AD47: 0 | AE47: 0 | AG47: 0 | AH47: 0 | AJ47: 0 | AK47: 0 | AL47: 0 | AM47: 0 | AN47: 0 | AO47: 2 | AP47: 74.36 | AQ47: 0 | AS47: 0 | AT47: NÃO MEDIDO
A48: Planilhado | C48: 020680U | D48: Retirada de eletroduto/duto de qualquer tipo (embutido) diâmetro até 1" | E48: M | F48: 5 | I48: 5 | J48: 3.53 | K48: 17.65 | M48: 0 | O48: 0 | P48: 0 | R48: 0 | S48: 0 | U48: 0 | V48: 0 | X48: 0 | Y48: 0 | AA48: 0 | AB48: 0 | AD48: 0 | AE48: 0 | AG48: 0 | AH48: 0 | AJ48: 0 | AK48: 0 | AL48: 0 | AM48: 0 | AN48: 0 | AO48: 5 | AP48: 17.65 | AQ48: 0 | AS48: 0 | AT48: NÃO MEDIDO
A49: Planilhado | C49: 02220.8.2.110U | D49: Remoção de escada, plataforma e guarda corpo de madeira p/acessar abrigos provisórios | E49: M | F49: 29.3 | I49: 29.3 | J49: 54.53 | K49: 1597.73 | M49: 0 | O49: 0 | P49: 0 | R49: 0 | S49: 0 | U49: 0 | V49: 0 | X49: 0 | Y49: 0 | AA49: 0 | AB49: 0 | AD49: 0 | AE49: 0 | AG49: 0 | AH49: 0 | AJ49: 0 | AK49: 0 | AL49: 0 | AM49: 0 | AN49: 0 | AO49: 29.3 | AP49: 1597.73 | AQ49: 0 | AS49: 0 | AT49: NÃO MEDIDO
A50: Planilhado | C50: 02226.8.1.02U | D50: Retirada de eletrocalha/leito de 150 a 600mm incl.aces.e fixações | E50: M | F50: 1 | I50: 1 | J50: 2.75 | K50: 2.75 | M50: 0 | O50: 0 | P50: 0 | R50: 0 | S50: 0 | U50: 0 | V50: 0 | X50: 0 | Y50: 0 | AA50: 0 | AB50: 0 | AD50: 0 | AE50: 0 | AG50: 0 | AH50: 0 | AJ50: 0 | AK50: 0 | AL50: 0 | AM50: 0 | AN50: 0 | AO50: 1 | AP50: 2.75 | AQ50: 0 | AS50: 0 | AT50: NÃO MEDIDO
A51: Planilhado | C51: 02226.8.3.02U | D51: Retirada de caixas de passagem até 502x502mm em PVC ou em ferro, embutida/aparente | E51: UN | F51: 1 | I51: 1 | J51: 3.39 | K51: 3.39 | M51: 0 | O51: 0 | P51: 0 | R51: 0 | S51: 0 | U51: 0 | V51: 0 | X51: 0 | Y51: 0 | AA51: 0 | AB51: 0 | AD51: 0 | AE51: 0 | AG51: 0 | AH51: 0 | AJ51: 0 | AK51: 0 | AL51: 0 | AM51: 0 | AN51: 0 | AO51: 1 | AP51: 3.39 | AQ51: 0 | AS51: 0 | AT51: NÃO MEDIDO
A52: Planilhado | C52: 02227.8.1.01U | D52: Retirada de aparelho de ar condicionado de parede | E52: UN | F52: 2 | I52: 2 | J52: 16.13 | K52: 32.26 | M52: 0 | O52: 0 | P52: 0 | R52: 0 | S52: 0 | U52: 0 | V52: 0 | X52: 0 | Y52: 0 | AA52: 0 | AB52: 0 | AD52: 0 | AE52: 0 | AG52: 0 | AH52: 0 | AJ52: 0 | AK52: 0 | AL52: 0 | AM52: 0 | AN52: 0 | AO52: 2 | AP52: 32.26 | AQ52: 0 | AS52: 0 | AT52: NÃO MEDIDO
A53: Planilhado | C53: 04.108.0001450.SER-U | D53: Corte de grade em perfil barra chata c/ arremate serralheria | E53: M | F53: 5.7 | I53: 5.7 | J53: 5.71 | K53: 32.55 | M53: 0 | O53: 0 | P53: 0 | R53: 0 | S53: 0 | U53: 0 | V53: 0 | X53: 0 | Y53: 0 | AA53: 0 | AB53: 0 | AD53: 0 | AE53: 0 | AG53: 0 | AH53: 0 | AJ53: 0 | AK53: 0 | AL53: 0 | AM53: 0 | AN53: 0 | AO53: 5.7 | AP53: 32.55 | AQ53: 0 | AS53: 0 | AT53: NÃO MEDIDO
A54: Planilhado | C54: 30.137.000214.SER | D54: Paralelepípedo, retirada e reassentamento sobre coxim de areia | E54: M2 | F54: 21 | I54: 21 | J54: 56.47 | K54: 1185.87 | M54: 0 | O54: 0 | P54: 0 | R54: 0 | S54: 0 | U54: 0 | V54: 0 | X54: 0 | Y54: 0 | AA54: 0 | AB54: 0 | AD54: 0 | AE54: 0 | AG54: 0 | AH54: 0 | AJ54: 0 | AK54: 0 | AL54: 0 | AM54: 0 | AN54: 0 | AO54: 21 | AP54: 1185.87 | AQ54: 0 | AS54: 0 | AT54: NÃO MEDIDO
A55: Planilhado | C55: 30.137.0002140.SER-U | D55: Arrancamento e reassentamento de blocos intertravados de concreto | E55: M2 | F55: 1.2 | I55: 1.2 | J55: 32.73 | K55: 39.28 | M55: 0 | O55: 0 | P55: 0 | R55: 0 | S55: 0 | U55: 0 | V55: 0 | X55: 0 | Y55: 0 | AA55: 0 | AB55: 0 | AD55: 0 | AE55: 0 | AG55: 0 | AH55: 0 | AJ55: 0 | AK55: 0 | AL55: 0 | AM55: 0 | AN55: 0 | AO55: 1.2 | AP55: 39.28 | AQ55: 0 | AS55: 0 | AT55: NÃO MEDIDO
A56: Família | C56: 20200 | D56: LIMPEZA DO TERRENO | I56: 0 | K56: 0 | M56: 0 | O56: 0 | P56: 0 | R56: 0 | S56: 0 | U56: 0 | V56: 0 | X56: 0 | Y56: 0 | AA56: 0 | AB56: 0 | AD56: 0 | AE56: 0 | AG56: 0 | AH56: 0 | AJ56: 0 | AK56: 0 | AL56: 0 | AM56: 0 | AN56: 0 | AO56: 0 | AP56: 0 | AQ56: 0 | AS56: 0 | AT56: =IF(COUNTIF(AT57:AT59,"MEDIDO")>0,"MEDIDO","NÃO MEDIDO") -> NÃO MEDIDO
A57: Planilhado | C57: 02.103.0000120.SER-U | D57: Poda em altura de árvore c/ diâmetro de tronco maior ou igual a 0,60m (98535 SINAPI) | E57: UN | F57: 2 | I57: 2 | J57: 936.09 | K57: 1872.18 | M57: 0 | O57: 0 | P57: 0 | R57: 0 | S57: 0 | U57: 0 | V57: 0 | X57: 0 | Y57: 0 | AA57: 0 | AB57: 0 | AD57: 0 | AE57: 0 | AG57: 0 | AH57: 0 | AJ57: 0 | AK57: 0 | AL57: 0 | AM57: 0 | AN57: 0 | AO57: 2 | AP57: 1872.18 | AQ57: 0 | AS57: 0 | AT57: NÃO MEDIDO
A58: Planilhado | C58: 30.147.0000600.SER-U | D58: Destocamento mecânico de tocos c/ diâmetro superior a 0,50m (01.006.0003-0 EMOP) | E58: UN | F58: 2 | I58: 2 | J58: 134.66 | K58: 269.32 | M58: 0 | O58: 0 | P58: 0 | R58: 0 | S58: 0 | U58: 0 | V58: 0 | X58: 0 | Y58: 0 | AA58: 0 | AB58: 0 | AD58: 0 | AE58: 0 | AG58: 0 | AH58: 0 | AJ58: 0 | AK58: 0 | AL58: 0 | AM58: 0 | AN58: 0 | AO58: 2 | AP58: 269.32 | AQ58: 0 | AS58: 0 | AT58: NÃO MEDIDO
A59: Planilhado | C59: 30.147.0007100.SER-U | D59: Remoção de espécies vegetais, porte muda até 2m altura | E59: UN | F59: 6 | I59: 6 | J59: 7.42 | K59: 44.52 | M59: 0 | O59: 0 | P59: 0 | R59: 0 | S59: 0 | U59: 0 | V59: 0 | X59: 0 | Y59: 0 | AA59: 0 | AB59: 0 | AD59: 0 | AE59: 0 | AG59: 0 | AH59: 0 | AJ59: 0 | AK59: 0 | AL59: 0 | AM59: 0 | AN59: 0 | AO59: 6 | AP59: 44.52 | AQ59: 0 | AS59: 0 | AT59: NÃO MEDIDO
A60: Família | C60: 20500 | D60: INSTALAÇÃO PROVISÓRIA DE ÁGUA E ESGOTO | I60: 0 | K60: 0 | M60: 0 | O60: 0 | P60: 0 | R60: 0 | S60: 0 | U60: 0 | V60: 0 | X60: 0 | Y60: 0 | AA60: 0 | AB60: 0 | AD60: 0 | AE60: 0 | AG60: 0 | AH60: 0 | AJ60: 0 | AK60: 0 | AL60: 0 | AM60: 0 | AN60: 0 | AO60: 0 | AP60: 0 | AQ60: 0 | AS60: 0 | AT60: =IF(COUNTIF(AT61:AT83,"MEDIDO")>0,"MEDIDO","NÃO MEDIDO") -> NÃO MEDIDO
A61: Planilhado | C61: 13.102.000011.SER | D61: Tubo PVC soldável inclusive conexões Ø 25 mm | E61: M | F61: 24 | I61: 24 | J61: 21.13 | K61: 507.12 | M61: 0 | O61: 0 | P61: 0 | R61: 0 | S61: 0 | U61: 0 | V61: 0 | X61: 0 | Y61: 0 | AA61: 0 | AB61: 0 | AD61: 0 | AE61: 0 | AG61: 0 | AH61: 0 | AJ61: 0 | AK61: 0 | AL61: 0 | AM61: 0 | AN61: 0 | AO61: 24 | AP61: 507.12 | AQ61: 0 | AS61: 0 | AT61: NÃO MEDIDO
A62: Planilhado | C62: 13.102.000012.SER | D62: Tubo PVC soldável inclusive conexões Ø 32 mm | E62: M | F62: 18 | I62: 18 | J62: 31.72 | K62: 570.96 | M62: 0 | O62: 0 | P62: 0 | R62: 0 | S62: 0 | U62: 0 | V62: 0 | X62: 0 | Y62: 0 | AA62: 0 | AB62: 0 | AD62: 0 | AE62: 0 | AG62: 0 | AH62: 0 | AJ62: 0 | AK62: 0 | AL62: 0 | AM62: 0 | AN62: 0 | AO62: 18 | AP62: 570.96 | AQ62: 0 | AS62: 0 | AT62: NÃO MEDIDO
A63: Planilhado | C63: 13.102.000013.SER | D63: Tubo PVC soldável inclusive conexões Ø 40 mm | E63: M | F63: 30 | I63: 30 | J63: 41.78 | K63: 1253.4 | M63: 0 | O63: 0 | P63: 0 | R63: 0 | S63: 0 | U63: 0 | V63: 0 | X63: 0 | Y63: 0 | AA63: 0 | AB63: 0 | AD63: 0 | AE63: 0 | AG63: 0 | AH63: 0 | AJ63: 0 | AK63: 0 | AL63: 0 | AM63: 0 | AN63: 0 | AO63: 30 | AP63: 1253.4 | AQ63: 0 | AS63: 0 | AT63: NÃO MEDIDO
A64: Planilhado | C64: 13.102.000052.SER-U | D64: Joelho 90° soldável PVC com rosca metálica Ø 25 mm x 1/2" | E64: UN | F64: 4 | I64: 4 | J64: 19.52 | K64: 78.08 | M64: 0 | O64: 0 | P64: 0 | R64: 0 | S64: 0 | U64: 0 | V64: 0 | X64: 0 | Y64: 0 | AA64: 0 | AB64: 0 | AD64: 0 | AE64: 0 | AG64: 0 | AH64: 0 | AJ64: 0 | AK64: 0 | AL64: 0 | AM64: 0 | AN64: 0 | AO64: 4 | AP64: 78.08 | AQ64: 0 | AS64: 0 | AT64: NÃO MEDIDO
A65: Planilhado | C65: 13.102.000071.SER-U | D65: Tê 90° soldável PVC com rosca metálica Ø 25 mm x 25 mm x 1/2" | E65: UN | F65: 4 | I65: 4 | J65: 22.57 | K65: 90.28 | M65: 0 | O65: 0 | P65: 0 | R65: 0 | S65: 0 | U65: 0 | V65: 0 | X65: 0 | Y65: 0 | AA65: 0 | AB65: 0 | AD65: 0 | AE65: 0 | AG65: 0 | AH65: 0 | AJ65: 0 | AK65: 0 | AL65: 0 | AM65: 0 | AN65: 0 | AO65: 4 | AP65: 90.28 | AQ65: 0 | AS65: 0 | AT65: NÃO MEDIDO
A66: Planilhado | C66: 13.102.0008001.SER-U | D66: Tubo PVC PB Ø 40mm inclusive conexões | E66: M | F66: 12 | I66: 12 | J66: 19.29 | K66: 231.48 | M66: 0 | O66: 0 | P66: 0 | R66: 0 | S66: 0 | U66: 0 | V66: 0 | X66: 0 | Y66: 0 | AA66: 0 | AB66: 0 | AD66: 0 | AE66: 0 | AG66: 0 | AH66: 0 | AJ66: 0 | AK66: 0 | AL66: 0 | AM66: 0 | AN66: 0 | AO66: 12 | AP66: 231.48 | AQ66: 0 | AS66: 0 | AT66: NÃO MEDIDO
A67: Planilhado | C67: 13.102.0008029.SER-U | D67: Tubo PVC PBV Ø 75 mm inclusive conexões | E67: M | F67: 6 | I67: 6 | J67: 41.21 | K67: 247.26 | M67: 0 | O67: 0 | P67: 0 | R67: 0 | S67: 0 | U67: 0 | V67: 0 | X67: 0 | Y67: 0 | AA67: 0 | AB67: 0 | AD67: 0 | AE67: 0 | AG67: 0 | AH67: 0 | AJ67: 0 | AK67: 0 | AL67: 0 | AM67: 0 | AN67: 0 | AO67: 6 | AP67: 247.26 | AQ67: 0 | AS67: 0 | AT67: NÃO MEDIDO
A68: Planilhado | C68: 13.102.0008039.SER-U | D68: Tubo PVC PBV Ø 100 mm inclusive conexões | E68: M | F68: 12 | I68: 12 | J68: 46.47 | K68: 557.64 | M68: 0 | O68: 0 | P68: 0 | R68: 0 | S68: 0 | U68: 0 | V68: 0 | X68: 0 | Y68: 0 | AA68: 0 | AB68: 0 | AD68: 0 | AE68: 0 | AG68: 0 | AH68: 0 | AJ68: 0 | AK68: 0 | AL68: 0 | AM68: 0 | AN68: 0 | AO68: 12 | AP68: 557.64 | AQ68: 0 | AS68: 0 | AT68: NÃO MEDIDO
A69: Planilhado | C69: 13.102.001056.SER-U | D69: Joelho 90° PVC ponta e bolsa soldável Ø 40 mm | E69: UN | F69: 3 | I69: 3 | J69: 15.41 | K69: 46.23 | M69: 0 | O69: 0 | P69: 0 | R69: 0 | S69: 0 | U69: 0 | V69: 0 | X69: 0 | Y69: 0 | AA69: 0 | AB69: 0 | AD69: 0 | AE69: 0 | AG69: 0 | AH69: 0 | AJ69: 0 | AK69: 0 | AL69: 0 | AM69: 0 | AN69: 0 | AO69: 3 | AP69: 46.23 | AQ69: 0 | AS69: 0 | AT69: NÃO MEDIDO
A70: Planilhado | C70: 13.102.001057.SER-U | D70: Joelho 90° PVC ponta bolsa e virola Ø 50 mm | E70: UN | F70: 3 | I70: 3 | J70: 18.28 | K70: 54.84 | M70: 0 | O70: 0 | P70: 0 | R70: 0 | S70: 0 | U70: 0 | V70: 0 | X70: 0 | Y70: 0 | AA70: 0 | AB70: 0 | AD70: 0 | AE70: 0 | AG70: 0 | AH70: 0 | AJ70: 0 | AK70: 0 | AL70: 0 | AM70: 0 | AN70: 0 | AO70: 3 | AP70: 54.84 | AQ70: 0 | AS70: 0 | AT70: NÃO MEDIDO | AU70: =SUM(AS55:AS69) -> 0
A71: Planilhado | C71: 13.102.001058.SER-U | D71: Joelho 90° PVC ponta bolsa e virola Ø 75 mm | E71: UN | F71: 3 | I71: 3 | J71: 28.85 | K71: 86.55 | M71: 0 | O71: 0 | P71: 0 | R71: 0 | S71: 0 | U71: 0 | V71: 0 | X71: 0 | Y71: 0 | AA71: 0 | AB71: 0 | AD71: 0 | AE71: 0 | AG71: 0 | AH71: 0 | AJ71: 0 | AK71: 0 | AL71: 0 | AM71: 0 | AN71: 0 | AO71: 3 | AP71: 86.55 | AQ71: 0 | AS71: 0 | AT71: NÃO MEDIDO
A72: Planilhado | C72: 13.102.001801.SER-U | D72: Tubo PVC PBV Ø 50 mm inclusive conexões | E72: M | F72: 6 | I72: 6 | J72: 28.43 | K72: 170.58 | M72: 0 | O72: 0 | P72: 0 | R72: 0 | S72: 0 | U72: 0 | V72: 0 | X72: 0 | Y72: 0 | AA72: 0 | AB72: 0 | AD72: 0 | AE72: 0 | AG72: 0 | AH72: 0 | AJ72: 0 | AK72: 0 | AL72: 0 | AM72: 0 | AN72: 0 | AO72: 6 | AP72: 170.58 | AQ72: 0 | AS72: 0 | AT72: NÃO MEDIDO
A73: Planilhado | C73: 13.119.000106.SER-U | D73: Registro de gaveta bruto Ø 20 mm - 3/4" | E73: UN | F73: 2 | I73: 2 | J73: 56.37 | K73: 112.74 | M73: 0 | O73: 0 | P73: 0 | R73: 0 | S73: 0 | U73: 0 | V73: 0 | X73: 0 | Y73: 0 | AA73: 0 | AB73: 0 | AD73: 0 | AE73: 0 | AG73: 0 | AH73: 0 | AJ73: 0 | AK73: 0 | AL73: 0 | AM73: 0 | AN73: 0 | AO73: 2 | AP73: 112.74 | AQ73: 0 | AS73: 0 | AT73: NÃO MEDIDO
A74: Planilhado | C74: 13.119.000110.SER-U | D74: Registro de gaveta bruto Ø 25 mm - 1" | E74: UN | F74: 2 | I74: 2 | J74: 71.41 | K74: 142.82 | M74: 0 | O74: 0 | P74: 0 | R74: 0 | S74: 0 | U74: 0 | V74: 0 | X74: 0 | Y74: 0 | AA74: 0 | AB74: 0 | AD74: 0 | AE74: 0 | AG74: 0 | AH74: 0 | AJ74: 0 | AK74: 0 | AL74: 0 | AM74: 0 | AN74: 0 | AO74: 2 | AP74: 142.82 | AQ74: 0 | AS74: 0 | AT74: NÃO MEDIDO
A75: Planilhado | C75: 13.119.000114.SER-U | D75: Registro de gaveta bruto Ø 32 mm - 1 1/4" | E75: UN | F75: 2 | I75: 2 | J75: 100.2 | K75: 200.4 | M75: 0 | O75: 0 | P75: 0 | R75: 0 | S75: 0 | U75: 0 | V75: 0 | X75: 0 | Y75: 0 | AA75: 0 | AB75: 0 | AD75: 0 | AE75: 0 | AG75: 0 | AH75: 0 | AJ75: 0 | AK75: 0 | AL75: 0 | AM75: 0 | AN75: 0 | AO75: 2 | AP75: 200.4 | AQ75: 0 | AS75: 0 | AT75: NÃO MEDIDO
A76: Planilhado | C76: 13.119.000190.SER | D76: Torneira de bóia Ø 32 mm - 1 1/4" | E76: UN | F76: 1 | I76: 1 | J76: 167.57 | K76: 167.57 | M76: 0 | O76: 0 | P76: 0 | R76: 0 | S76: 0 | U76: 0 | V76: 0 | X76: 0 | Y76: 0 | AA76: 0 | AB76: 0 | AD76: 0 | AE76: 0 | AG76: 0 | AH76: 0 | AJ76: 0 | AK76: 0 | AL76: 0 | AM76: 0 | AN76: 0 | AO76: 1 | AP76: 167.57 | AQ76: 0 | AS76: 0 | AT76: NÃO MEDIDO
A77: Planilhado | C77: 15132.8.1.33U | D77: Sistema de pressão integrado compacto, V=5,0m³/h, na pressão média 21/30 mca, POT =1,0CV - 220V-3Ø - sucção Ø1.1/4", Recalque Ø11/4" | E77: UN | F77: 1 | I77: 1 | J77: 123 | K77: 123 | M77: 0 | O77: 0 | P77: 0 | R77: 0 | S77: 0 | U77: 0 | V77: 0 | X77: 0 | Y77: 0 | AA77: 0 | AB77: 0 | AD77: 0 | AE77: 0 | AG77: 0 | AH77: 0 | AJ77: 0 | AK77: 0 | AL77: 0 | AM77: 0 | AN77: 0 | AO77: 1 | AP77: 123 | AQ77: 0 | AS77: =INDEX($N$10:$AK$469,ROW()-8,MATCH($AS$10,$N$10:$AK$10,0)) -> 0 | AT77: NÃO MEDIDO
A78: Planilhado | C78: 15155.8.6.11U | D78: Caixa de gordura/sifonada PVC rígido 250x230x75mm - completa | E78: UN | F78: 1 | I78: 1 | J78: 157.29 | K78: 157.29 | M78: 0 | O78: 0 | P78: 0 | R78: 0 | S78: 0 | U78: 0 | V78: 0 | X78: 0 | Y78: 0 | AA78: 0 | AB78: 0 | AD78: 0 | AE78: 0 | AG78: 0 | AH78: 0 | AJ78: 0 | AK78: 0 | AL78: 0 | AM78: 0 | AN78: 0 | AO78: 1 | AP78: 157.29 | AQ78: 0 | AS78: 0 | AT78: NÃO MEDIDO
A79: Planilhado | C79: 15410.8.27.2U | D79: Torneira de lavagem ou jardim D= 1/2 ou 3/4'' | E79: UN | F79: 1 | I79: 1 | J79: 120.11 | K79: 120.11 | M79: 0 | O79: 0 | P79: 0 | R79: 0 | S79: 0 | U79: 0 | V79: 0 | X79: 0 | Y79: 0 | AA79: 0 | AB79: 0 | AD79: 0 | AE79: 0 | AG79: 0 | AH79: 0 | AJ79: 0 | AK79: 0 | AL79: 0 | AM79: 0 | AN79: 0 | AO79: 1 | AP79: 120.11 | AQ79: 0 | AS79: 0 | AT79: NÃO MEDIDO
A80: Planilhado | C80: 15450.8.3.2U | D80: Reservatório dágua de polietileno cap.1000L | E80: UN | F80: 1 | I80: 1 | J80: 376.26 | K80: 376.26 | M80: 0 | O80: 0 | P80: 0 | R80: 0 | S80: 0 | U80: 0 | V80: 0 | X80: 0 | Y80: 0 | AA80: 0 | AB80: 0 | AD80: 0 | AE80: 0 | AG80: 0 | AH80: 0 | AJ80: 0 | AK80: 0 | AL80: 0 | AM80: 0 | AN80: 0 | AO80: 1 | AP80: 376.26 | AQ80: 0 | AS80: 0 | AT80: NÃO MEDIDO
A81: Planilhado | C81: 15900.8.1.10U | D81: Fixação p/tubulação D=1/2 a 4" tipo econômica - cj.completo | E81: UN | F81: 10 | I81: 10 | J81: 16.82 | K81: 168.2 | M81: 0 | O81: 0 | P81: 0 | R81: 0 | S81: 0 | U81: 0 | V81: 0 | X81: 0 | Y81: 0 | AA81: 0 | AB81: 0 | AD81: 0 | AE81: 0 | AG81: 0 | AH81: 0 | AJ81: 0 | AK81: 0 | AL81: 0 | AM81: 0 | AN81: 0 | AO81: 10 | AP81: 168.2 | AQ81: 0 | AS81: 0 | AT81: NÃO MEDIDO
A82: Planilhado | C82: 220250U | D82: Filtro c/ cartucho p/ tripla filtragem - completo | E82: UN | F82: 1 | I82: 1 | J82: 253.93 | K82: 253.93 | M82: 0 | O82: 0 | P82: 0 | R82: 0 | S82: 0 | U82: 0 | V82: 0 | X82: 0 | Y82: 0 | AA82: 0 | AB82: 0 | AD82: 0 | AE82: 0 | AG82: 0 | AH82: 0 | AJ82: 0 | AK82: 0 | AL82: 0 | AM82: =SUMIF($N$10:$AK$11,"COM DESCONTO",N82:AK82) -> 0 | AN82: =SUMIF($N$10:$AK$11,"SEM DESCONTO",N82:AK82) -> 0 | AO82: =I82-AL82 -> 1 | AP82: =K82-AM82 -> 253.93 | AQ82: =M82-AN82 -> 0 | AS82: =INDEX($N$10:$AK$469,ROW()-8,MATCH($AS$10,$N$10:$AK$10,0)) -> 0 | AT82: NÃO MEDIDO
A83: Planilhado | C83: 15132.8.1.33E | D83: Sistema de pressão integrado compacto, V=5,0m³/h, na pressão média 21/30 mca, POT =1,0CV - 220V-3Ø - sucção Ø1.1/4", Recalque Ø11/4" | E83: UN | F83: 1 | I83: =F83+G83+H83 -> 1 | J83: 7272.37 | K83: =ROUND((F83*$J83),2)+ROUND((G83*$J83),2)+ROUND((H83*$J83),2) -> 7272.37 | M83: 0 | O83: =ROUND($N83*$J83,2) -> 0 | P83: =ROUND($N83*$L83,2) -> 0 | R83: =ROUND($Q83*$J83,2) -> 0 | S83: =ROUND($Q83*$L83,2) -> 0 | U83: =ROUND($T83*$J83,2) -> 0 | V83: =ROUND($T83*$L83,2) -> 0 | X83: =ROUND($W83*$J83,2) -> 0 | Y83: =ROUND($W83*$L83,2) -> 0 | AA83: =ROUND($Z83*$J83,2) -> 0 | AB83: =ROUND($Z83*$L83,2) -> 0 | AD83: =ROUND($AC83*$J83,2) -> 0 | AE83: =ROUND($AC83*$L83,2) -> 0 | AG83: =ROUND($AF83*$J83,2) -> 0 | AH83: =ROUND($AF83*$L83,2) -> 0 | AJ83: =ROUND($AI83*$J83,2) -> 0 | AK83: =ROUND($AI83*$L83,2) -> 0 | AL83: 0 | AM83: 0 | AN83: 0 | AO83: 1 | AP83: 7272.37 | AQ83: 0 | AS83: 0 | AT83: NÃO MEDIDO
A84: Família | C84: 20600 | D84: INSTALAÇÃO PROVISÓRIA - TELEFONIA | I84: 0 | K84: 0 | M84: 0 | O84: 0 | P84: 0 | R84: 0 | S84: 0 | U84: 0 | V84: 0 | X84: 0 | Y84: 0 | AA84: 0 | AB84: 0 | AD84: 0 | AE84: 0 | AG84: 0 | AH84: 0 | AJ84: 0 | AK84: 0 | AL84: 0 | AM84: 0 | AN84: 0 | AO84: 0 | AP84: 0 | AQ84: 0 | AS84: =INDEX($N$10:$AK$469,ROW()-8,MATCH($AS$10,$N$10:$AK$10,0)) -> 0 | AT84: =IF(COUNTIF(AT85:AT95,"MEDIDO")>0,"MEDIDO","NÃO MEDIDO") -> NÃO MEDIDO
A85: Planilhado | C85: 15141.8.30.22U | D85: Braçadeira tipo "D" chapa galv.3/4" c/fixações | E85: UN | F85: 2 | I85: 2 | J85: 5 | K85: 10 | M85: =ROUND(I85*L85,2) -> 0 | O85: 0 | P85: 0 | R85: 0 | S85: 0 | U85: 0 | V85: 0 | X85: 0 | Y85: 0 | AA85: 0 | AB85: 0 | AD85: 0 | AE85: 0 | AG85: 0 | AH85: 0 | AJ85: 0 | AK85: 0 | AL85: 0 | AM85: 0 | AN85: 0 | AO85: 2 | AP85: 10 | AQ85: 0 | AS85: 0 | AT85: NÃO MEDIDO
A86: Planilhado | C86: 15141.8.30.44U | D86: Braçadeira tipo "D" chapa galv.1 1/4" c/fixações | E86: UN | F86: 2 | I86: 2 | J86: 5.99 | K86: 11.98 | M86: 0 | O86: 0 | P86: 0 | R86: 0 | S86: 0 | U86: 0 | V86: 0 | X86: 0 | Y86: 0 | AA86: 0 | AB86: 0 | AD86: 0 | AE86: 0 | AG86: 0 | AH86: 0 | AJ86: 0 | AK86: 0 | AL86: =SUMIF($N$9:$AK$9,"QUANTIDADE",N86:AK86) -> 0 | AM86: 0 | AN86: 0 | AO86: 2 | AP86: 11.98 | AQ86: 0 | AS86: 0 | AT86: NÃO MEDIDO
A87: Planilhado | C87: 16.111.001501.SER | D87: Eletroduto PVC rígido roscável inclusive conexões Ø 25 mm 3/4" | E87: M | F87: 3 | I87: 3 | J87: 20.29 | K87: 60.87 | M87: 0 | O87: 0 | P87: 0 | R87: 0 | S87: 0 | U87: 0 | V87: 0 | X87: 0 | Y87: 0 | AA87: 0 | AB87: 0 | AD87: 0 | AE87: 0 | AG87: 0 | AH87: 0 | AJ87: 0 | AK87: 0 | AL87: 0 | AM87: 0 | AN87: 0 | AO87: 3 | AP87: 60.87 | AQ87: 0 | AS87: 0 | AT87: NÃO MEDIDO
A88: Planilhado | C88: 16135.8.1.21U | D88: Condulete de alumínio multi-uso tipo ''X'' 3/4" c/ tampa cega IP 54 - c/ mínimo 2 tampões de vedação - Fornec. e Inst | E88: UN | F88: 2 | I88: 2 | J88: 64.29 | K88: 128.58 | M88: 0 | O88: 0 | P88: 0 | R88: 0 | S88: 0 | U88: 0 | V88: 0 | X88: 0 | Y88: 0 | AA88: 0 | AB88: 0 | AD88: 0 | AE88: 0 | AG88: 0 | AH88: 0 | AJ88: 0 | AK88: 0 | AL88: 0 | AM88: 0 | AN88: 0 | AO88: 2 | AP88: 128.58 | AQ88: 0 | AS88: =INDEX($N$10:$AK$469,ROW()-8,MATCH($AS$10,$N$10:$AK$10,0)) -> 0 | AT88: NÃO MEDIDO
A89: Planilhado | C89: 16135.8.4.022U | D89: Box reto em alumínio fundido 3/4" | E89: UN | F89: 2 | I89: 2 | J89: 6.08 | K89: 12.16 | M89: 0 | O89: 0 | P89: 0 | R89: 0 | S89: 0 | U89: 0 | V89: 0 | X89: 0 | Y89: 0 | AA89: 0 | AB89: 0 | AD89: 0 | AE89: 0 | AG89: 0 | AH89: 0 | AJ89: 0 | AK89: 0 | AL89: 0 | AM89: 0 | AN89: 0 | AO89: 2 | AP89: 12.16 | AQ89: 0 | AS89: 0 | AT89: NÃO MEDIDO
A90: Planilhado | C90: 16135.8.4.044U | D90: Box reto em alumínio fundido 1 1/4" | E90: UN | F90: 1 | I90: 1 | J90: 9.34 | K90: 9.34 | M90: 0 | O90: 0 | P90: 0 | R90: 0 | S90: 0 | U90: 0 | V90: 0 | X90: 0 | Y90: 0 | AA90: 0 | AB90: 0 | AD90: 0 | AE90: 0 | AG90: 0 | AH90: 0 | AJ90: 0 | AK90: 0 | AL90: 0 | AM90: 0 | AN90: 0 | AO90: 1 | AP90: 9.34 | AQ90: 0 | AS90: 0 | AT90: NÃO MEDIDO
A91: Planilhado | C91: 16973.8.1.10U | D91: Duto corrugado helicoidal na cor preta, de polietileno de alta densidade (PEAD), incl. conexões e kit vedação 32 mm (1 1/4'') - (06.069.0100-0 EMOP) | E91: M | F91: 35 | I91: =F91+G91+H91 -> 35 | J91: 13.89 | K91: =ROUND((F91*$J91),2)+ROUND((G91*$J91),2)+ROUND((H91*$J91),2) -> 486.15 | M91: 0 | O91: 0 | P91: 0 | R91: 0 | S91: 0 | U91: 0 | V91: 0 | X91: 0 | Y91: 0 | AA91: 0 | AB91: 0 | AD91: 0 | AE91: 0 | AG91: 0 | AH91: 0 | AJ91: 0 | AK91: 0 | AL91: 0 | AM91: 0 | AN91: 0 | AO91: 35 | AP91: 486.15 | AQ91: 0 | AS91: 0 | AT91: NÃO MEDIDO
A92: Planilhado | C92: 17083099U | D92: Caixa de passagem termo-plástica, para sobrepor, com tampa, grau de proteção: IP55, uso externo, tamanho 240x190x90mm (+/- 10%), com furação para tubos até 38 mm, fornecida com embutes | E92: UN | F92: 1 | I92: 1 | J92: 101.21 | K92: 101.21 | M92: 0 | O92: 0 | P92: 0 | R92: 0 | S92: 0 | U92: 0 | V92: 0 | X92: 0 | Y92: 0 | AA92: 0 | AB92: 0 | AD92: 0 | AE92: 0 | AG92: 0 | AH92: 0 | AJ92: 0 | AK92: 0 | AL92: 0 | AM92: 0 | AN92: 0 | AO92: 1 | AP92: 101.21 | AQ92: 0 | AS92: 0 | AT92: =IF(AS92<>0,"MEDIDO","NÃO MEDIDO") -> NÃO MEDIDO
A93: Planilhado | C93: 1719322U | D93: Cabo telefônico tipo CCE-APL p/ 2 pares (Branco e Azul/ Branco e Laranja) 0,5 mm estanhado c/ certificação ANATEL | E93: M | F93: 70 | I93: 70 | J93: 4.1 | K93: 287 | M93: 0 | O93: 0 | P93: 0 | R93: 0 | S93: 0 | U93: 0 | V93: 0 | X93: 0 | Y93: 0 | AA93: 0 | AB93: 0 | AD93: 0 | AE93: 0 | AG93: 0 | AH93: 0 | AJ93: 0 | AK93: 0 | AL93: 0 | AM93: 0 | AN93: 0 | AO93: 70 | AP93: 287 | AQ93: 0 | AS93: 0 | AT93: =IF(AS93<>0,"MEDIDO","NÃO MEDIDO") -> NÃO MEDIDO
A94: Planilhado | C94: 172295U | D94: Arame galvanizado N.16 BWG | E94: KG | F94: 0.65 | I94: 0.65 | J94: 38.22 | K94: 24.84 | M94: 0 | O94: 0 | P94: 0 | R94: 0 | S94: 0 | U94: 0 | V94: 0 | X94: 0 | Y94: 0 | AA94: 0 | AB94: 0 | AD94: 0 | AE94: 0 | AG94: 0 | AH94: 0 | AJ94: 0 | AK94: 0 | AL94: 0 | AM94: 0 | AN94: 0 | AO94: 0.65 | AP94: 24.84 | AQ94: 0 | AS94: 0 | AT94: NÃO MEDIDO
A95: Planilhado | C95: 19079994U | D95: Conector em alumínio p/ condulete múltiplo IP 54 de Ø 3/4'', c/ rosca BSP e parafuso - Forn. e Inst . | E95: UN | F95: 4 | I95: 4 | J95: 4.8 | K95: 19.2 | M95: 0 | O95: 0 | P95: 0 | R95: 0 | S95: 0 | U95: 0 | V95: 0 | X95: 0 | Y95: 0 | AA95: 0 | AB95: 0 | AD95: 0 | AE95: 0 | AG95: 0 | AH95: 0 | AJ95: 0 | AK95: 0 | AL95: 0 | AM95: 0 | AN95: 0 | AO95: 4 | AP95: 19.2 | AQ95: 0 | AS95: 0 | AT95: NÃO MEDIDO
A96: Família | C96: 20700 | D96: INSTALAÇÃO PROVISÓRIA - QUADROS PARCIAIS E DISTRIBUIÇÃO | I96: 0 | K96: 0 | M96: 0 | O96: 0 | P96: 0 | R96: 0 | S96: 0 | U96: 0 | V96: 0 | X96: 0 | Y96: 0 | AA96: 0 | AB96: 0 | AD96: 0 | AE96: 0 | AG96: 0 | AH96: 0 | AJ96: 0 | AK96: 0 | AL96: 0 | AM96: 0 | AN96: 0 | AO96: 0 | AP96: 0 | AQ96: 0 | AS96: 0 | AT96: =IF(COUNTIF(AT97:AT141,"MEDIDO")>0,"MEDIDO","NÃO MEDIDO") -> NÃO MEDIDO
A97: Planilhado | C97: 02633.8.2.04U | D97: Tampa de F.F.tipo pesada 400x400mm | E97: UN | F97: 5 | I97: 5 | J97: 192.3 | K97: 961.5 | M97: 0 | O97: 0 | P97: 0 | R97: 0 | S97: 0 | U97: 0 | V97: 0 | X97: 0 | Y97: 0 | AA97: 0 | AB97: 0 | AD97: 0 | AE97: 0 | AG97: 0 | AH97: 0 | AJ97: 0 | AK97: 0 | AL97: 0 | AM97: 0 | AN97: 0 | AO97: 5 | AP97: 961.5 | AQ97: 0 | AS97: 0 | AT97: NÃO MEDIDO
A98: Planilhado | C98: 05060.8.11.0199U | D98: Tirante de aço 1/4" rosqueado, incl.fixações | E98: M | F98: 22 | I98: 22 | J98: 4.84 | K98: 106.48 | M98: 0 | O98: 0 | P98: 0 | R98: 0 | S98: 0 | U98: 0 | V98: 0 | X98: 0 | Y98: 0 | AA98: 0 | AB98: 0 | AD98: 0 | AE98: 0 | AG98: 0 | AH98: 0 | AJ98: 0 | AK98: 0 | AL98: 0 | AM98: 0 | AN98: 0 | AO98: 22 | AP98: 106.48 | AQ98: 0 | AS98: 0 | AT98: NÃO MEDIDO
A99: Planilhado | C99: 13105.8.5.11U | D99: Grampo de aterramento em bronze (tp. braçadeira) p/ fix. cabo 16mm² a haste 3/4'' | E99: UN | F99: 1 | I99: 1 | J99: 54.5 | K99: 54.5 | M99: 0 | O99: 0 | P99: 0 | R99: 0 | S99: 0 | U99: 0 | V99: 0 | X99: 0 | Y99: 0 | AA99: 0 | AB99: 0 | AD99: 0 | AE99: 0 | AG99: 0 | AH99: 0 | AJ99: 0 | AK99: 0 | AL99: 0 | AM99: 0 | AN99: 0 | AO99: 1 | AP99: 54.5 | AQ99: 0 | AS99: 0 | AT99: NÃO MEDIDO
A100: Planilhado | C100: 13105.8.8.05U | D100: Haste de aterramento 3/4"x2,40m | E100: UN | F100: 1 | I100: 1 | J100: 112.03 | K100: 112.03 | M100: 0 | O100: 0 | P100: 0 | R100: 0 | S100: 0 | U100: 0 | V100: 0 | X100: 0 | Y100: 0 | AA100: 0 | AB100: 0 | AD100: 0 | AE100: 0 | AG100: 0 | AH100: 0 | AJ100: 0 | AK100: 0 | AL100: 0 | AM100: 0 | AN100: 0 | AO100: 1 | AP100: 112.03 | AQ100: 0 | AS100: 0 | AT100: NÃO MEDIDO
A101: Planilhado | C101: 13106.8.1.055U | D101: Terminal mecânico compressão em cobre p/cabo 10mm² | E101: UN | F101: 20 | I101: 20 | J101: 10.92 | K101: 218.4 | M101: 0 | O101: 0 | P101: 0 | R101: 0 | S101: 0 | U101: 0 | V101: 0 | X101: 0 | Y101: 0 | AA101: 0 | AB101: 0 | AD101: 0 | AE101: 0 | AG101: 0 | AH101: 0 | AJ101: 0 | AK101: 0 | AL101: 0 | AM101: 0 | AN101: 0 | AO101: 20 | AP101: 218.4 | AQ101: 0 | AS101: 0 | AT101: NÃO MEDIDO
A102: Planilhado | C102: 13106.8.1.066U | D102: Terminal mecânico compressão em cobre p/cabo 16mm² | E102: UN | F102: 10 | I102: 10 | J102: 12.32 | K102: 123.2 | M102: 0 | O102: 0 | P102: 0 | R102: 0 | S102: 0 | U102: 0 | V102: 0 | X102: 0 | Y102: 0 | AA102: 0 | AB102: 0 | AD102: 0 | AE102: 0 | AG102: 0 | AH102: 0 | AJ102: 0 | AK102: 0 | AL102: 0 | AM102: 0 | AN102: 0 | AO102: 10 | AP102: 123.2 | AQ102: 0 | AS102: 0 | AT102: NÃO MEDIDO
A103: Planilhado | C103: 13106.8.1.077U | D103: Terminal mecânico compressão em cobre p/cabo 25mm² | E103: UN | F103: 10 | I103: 10 | J103: 12.91 | K103: 129.1 | M103: 0 | O103: 0 | P103: 0 | R103: 0 | S103: 0 | U103: 0 | V103: 0 | X103: 0 | Y103: 0 | AA103: 0 | AB103: 0 | AD103: 0 | AE103: 0 | AG103: 0 | AH103: 0 | AJ103: 0 | AK103: 0 | AL103: 0 | AM103: 0 | AN103: 0 | AO103: 10 | AP103: 129.1 | AQ103: 0 | AS103: 0 | AT103: NÃO MEDIDO
A104: Planilhado | C104: 15141.8.30.22U | D104: Braçadeira tipo "D" chapa galv.3/4" c/fixações | E104: UN | F104: 45 | I104: 45 | J104: 5 | K104: 225 | M104: 0 | O104: 0 | P104: 0 | R104: 0 | S104: 0 | U104: 0 | V104: 0 | X104: 0 | Y104: 0 | AA104: 0 | AB104: 0 | AD104: 0 | AE104: 0 | AG104: 0 | AH104: 0 | AJ104: 0 | AK104: 0 | AL104: 0 | AM104: 0 | AN104: 0 | AO104: 45 | AP104: 225 | AQ104: 0 | AS104: 0 | AT104: NÃO MEDIDO
A105: Planilhado | C105: 16.111.001501.SER | D105: Eletroduto PVC rígido roscável inclusive conexões Ø 25 mm 3/4" | E105: M | F105: 35 | I105: 35 | J105: 20.29 | K105: 710.15 | M105: 0 | O105: 0 | P105: 0 | R105: 0 | S105: 0 | U105: 0 | V105: 0 | X105: 0 | Y105: 0 | AA105: 0 | AB105: 0 | AD105: 0 | AE105: 0 | AG105: 0 | AH105: 0 | AJ105: 0 | AK105: 0 | AL105: 0 | AM105: 0 | AN105: 0 | AO105: 35 | AP105: 710.15 | AQ105: 0 | AS105: 0 | AT105: NÃO MEDIDO
A106: Planilhado | C106: 16.111.001504.SER | D106: Eletroduto PVC rígido roscável inclusive conexões Ø 50 mm 1 1/2" | E106: M | F106: 60 | I106: 60 | J106: 41.08 | K106: 2464.8 | M106: 0 | O106: 0 | P106: 0 | R106: 0 | S106: 0 | U106: 0 | V106: 0 | X106: 0 | Y106: 0 | AA106: 0 | AB106: 0 | AD106: 0 | AE106: 0 | AG106: 0 | AH106: 0 | AJ106: 0 | AK106: 0 | AL106: 0 | AM106: 0 | AN106: 0 | AO106: 60 | AP106: 2464.8 | AQ106: 0 | AS106: 0 | AT106: NÃO MEDIDO
A107: Planilhado | C107: 16.113.001025.SER | D107: Suporte curto para luminária em chapa de aço galvanizado para perfilado | E107: UN | F107: 26 | I107: 26 | J107: 8.16 | K107: 212.16 | M107: 0 | O107: 0 | P107: 0 | R107: 0 | S107: 0 | U107: 0 | V107: 0 | X107: 0 | Y107: 0 | AA107: 0 | AB107: 0 | AD107: 0 | AE107: 0 | AG107: 0 | AH107: 0 | AJ107: 0 | AK107: 0 | AL107: 0 | AM107: 0 | AN107: 0 | AO107: 26 | AP107: 212.16 | AQ107: 0 | AS107: 0 | AT107: NÃO MEDIDO
A108: Planilhado | C108: 16.119.000301.SER | D108: Cabo isolado em EPR não halogenado 2,50 mm² - 0,6/1 KV - 90°C - flexível | E108: M | F108: 100 | I108: 100 | J108: 7.21 | K108: 721 | M108: 0 | O108: 0 | P108: 0 | R108: 0 | S108: 0 | U108: 0 | V108: 0 | X108: 0 | Y108: 0 | AA108: 0 | AB108: 0 | AD108: 0 | AE108: 0 | AG108: 0 | AH108: 0 | AJ108: 0 | AK108: 0 | AL108: 0 | AM108: 0 | AN108: 0 | AO108: 100 | AP108: 721 | AQ108: 0 | AS108: 0 | AT108: NÃO MEDIDO
A109: Planilhado | C109: 16.119.000305.SER | D109: Cabo isolado em EPR não halogenado 16,00 mm² - 0,6/1 KV - 90°C - flexível | E109: M | F109: 100 | I109: 100 | J109: 22.01 | K109: 2201 | M109: 0 | O109: 0 | P109: 0 | R109: 0 | S109: 0 | U109: 0 | V109: 0 | X109: 0 | Y109: 0 | AA109: 0 | AB109: 0 | AD109: 0 | AE109: 0 | AG109: 0 | AH109: 0 | AJ109: 0 | AK109: 0 | AL109: 0 | AM109: 0 | AN109: 0 | AO109: 100 | AP109: 2201 | AQ109: 0 | AS109: 0 | AT109: NÃO MEDIDO
A110: Planilhado | C110: 16.119.000306.SER | D110: Cabo isolado em EPR não halogenado 25,00 mm² - 0,6/1 KV - 90°C - flexível | E110: M | F110: 200 | I110: 200 | J110: 31.43 | K110: 6286 | M110: 0 | O110: 0 | P110: 0 | R110: 0 | S110: 0 | U110: 0 | V110: 0 | X110: 0 | Y110: 0 | AA110: 0 | AB110: 0 | AD110: 0 | AE110: 0 | AG110: 0 | AH110: 0 | AJ110: 0 | AK110: 0 | AL110: 0 | AM110: 0 | AN110: 0 | AO110: 200 | AP110: 6286 | AQ110: 0 | AS110: 0 | AT110: NÃO MEDIDO
A111: Planilhado | C111: 16.121.000017.SER-U | D111: Interruptor, uma tecla bipolar paralela 10 A - 250 V | E111: UN | F111: 3 | I111: 3 | J111: 61.2 | K111: 183.6 | M111: 0 | O111: 0 | P111: 0 | R111: 0 | S111: 0 | U111: 0 | V111: 0 | X111: 0 | Y111: 0 | AA111: 0 | AB111: 0 | AD111: 0 | AE111: 0 | AG111: 0 | AH111: 0 | AJ111: 0 | AK111: 0 | AL111: 0 | AM111: 0 | AN111: 0 | AO111: 3 | AP111: 183.6 | AQ111: 0 | AS111: 0 | AT111: NÃO MEDIDO
A112: Planilhado | C112: 16110.8.1.100U | D112: Terminal pré-isolado tipo pino - 2,5mm² | E112: UN | F112: 25 | I112: 25 | J112: 1.1 | K112: 27.5 | M112: 0 | O112: 0 | P112: 0 | R112: 0 | S112: 0 | U112: 0 | V112: 0 | X112: 0 | Y112: 0 | AA112: 0 | AB112: 0 | AD112: 0 | AE112: 0 | AG112: 0 | AH112: 0 | AJ112: 0 | AK112: 0 | AL112: 0 | AM112: 0 | AN112: 0 | AO112: 25 | AP112: 27.5 | AQ112: 0 | AS112: 0 | AT112: NÃO MEDIDO
A113: Planilhado | C113: 16110.8.1.111U | D113: Terminal pré-isolado tipo pino - 4,0mm² | E113: UN | F113: 15 | I113: 15 | J113: 1.35 | K113: 20.25 | M113: 0 | O113: 0 | P113: 0 | R113: 0 | S113: 0 | U113: 0 | V113: 0 | X113: 0 | Y113: 0 | AA113: 0 | AB113: 0 | AD113: 0 | AE113: 0 | AG113: 0 | AH113: 0 | AJ113: 0 | AK113: 0 | AL113: 0 | AM113: 0 | AN113: 0 | AO113: 15 | AP113: 20.25 | AQ113: 0 | AS113: 0 | AT113: NÃO MEDIDO
A114: Planilhado | C114: 16110.8.5.10U | D114: Emenda pré-isolada - 2,5mm² | E114: UN | F114: 25 | I114: 25 | J114: 1.06 | K114: 26.5 | M114: 0 | O114: 0 | P114: 0 | R114: 0 | S114: 0 | U114: 0 | V114: 0 | X114: 0 | Y114: 0 | AA114: 0 | AB114: 0 | AD114: 0 | AE114: 0 | AG114: 0 | AH114: 0 | AJ114: 0 | AK114: 0 | AL114: 0 | AM114: 0 | AN114: 0 | AO114: 25 | AP114: 26.5 | AQ114: 0 | AS114: 0 | AT114: NÃO MEDIDO
A115: Planilhado | C115: 16110.8.5.11U | D115: Emenda pré-isolada - 4,0mm² | E115: UN | F115: 15 | I115: 15 | J115: 1.46 | K115: 21.9 | M115: 0 | O115: 0 | P115: 0 | R115: 0 | S115: 0 | U115: 0 | V115: 0 | X115: 0 | Y115: 0 | AA115: 0 | AB115: 0 | AD115: 0 | AE115: 0 | AG115: 0 | AH115: 0 | AJ115: 0 | AK115: 0 | AL115: 0 | AM115: 0 | AN115: 0 | AO115: 15 | AP115: 21.9 | AQ115: 0 | AS115: 0 | AT115: NÃO MEDIDO
A116: Planilhado | C116: 16120.8.11.088U | D116: Cabo flexível isolado PVC 300/500V tipo PP 3X2,5mm² | E116: M | F116: 26 | I116: 26 | J116: 7.76 | K116: 201.76 | M116: 0 | O116: 0 | P116: 0 | R116: 0 | S116: 0 | U116: 0 | V116: 0 | X116: 0 | Y116: 0 | AA116: 0 | AB116: 0 | AD116: 0 | AE116: 0 | AG116: 0 | AH116: 0 | AJ116: 0 | AK116: 0 | AL116: 0 | AM116: 0 | AN116: 0 | AO116: 26 | AP116: 201.76 | AQ116: 0 | AS116: 0 | AT116: NÃO MEDIDO
A117: Planilhado | C117: 16120.8.16.90U | D117: Cabo com isolação em dupla camada de poliolefínico não halogenado, baixa emissão de fumaça e gases, não propagação e auto extinção do fogo - seção 2,5mm² - 450/750 V de acordo com a norma NBR-13428 | E117: M | F117: 300 | I117: 300 | J117: 5.89 | K117: 1767 | M117: 0 | O117: 0 | P117: 0 | R117: 0 | S117: 0 | U117: 0 | V117: 0 | X117: 0 | Y117: 0 | AA117: 0 | AB117: 0 | AD117: 0 | AE117: 0 | AG117: 0 | AH117: 0 | AJ117: 0 | AK117: 0 | AL117: 0 | AM117: 0 | AN117: 0 | AO117: 300 | AP117: 1767 | AQ117: 0 | AS117: 0 | AT117: NÃO MEDIDO
A118: Planilhado | C118: 16120.8.16.910U | D118: Cabo com isolação em dupla camada de poliolefínico não halogenado, baixa emissão de fumaça e gases, não propagação e auto extinção do fogo - seção 4,0mm² - 0,75/1kV de acordo com a norma NBR-13428 | E118: M | F118: 350 | I118: 350 | J118: 7.79 | K118: 2726.5 | M118: 0 | O118: 0 | P118: 0 | R118: 0 | S118: 0 | U118: 0 | V118: 0 | X118: 0 | Y118: 0 | AA118: 0 | AB118: 0 | AD118: 0 | AE118: 0 | AG118: 0 | AH118: 0 | AJ118: 0 | AK118: 0 | AL118: 0 | AM118: 0 | AN118: 0 | AO118: 350 | AP118: 2726.5 | AQ118: 0 | AS118: 0 | AT118: NÃO MEDIDO
A119: Planilhado | C119: 16120.8.16.940U | D119: Cabo com isolação em dupla camada de poliolefínico não halogenado, baixa emissão de fumaça e gases, não propagação e auto extinção do fogo - seção 10,0mm² - 0,75/1kV de acordo com a norma NBR-13428 | E119: M | F119: 230 | I119: 230 | J119: 12.79 | K119: 2941.7 | M119: 0 | O119: 0 | P119: 0 | R119: 0 | S119: 0 | U119: 0 | V119: 0 | X119: 0 | Y119: 0 | AA119: 0 | AB119: 0 | AD119: 0 | AE119: 0 | AG119: 0 | AH119: 0 | AJ119: 0 | AK119: 0 | AL119: 0 | AM119: 0 | AN119: 0 | AO119: 230 | AP119: 2941.7 | AQ119: 0 | AS119: 0 | AT119: NÃO MEDIDO
A120: Planilhado | C120: 16120.8.7.077U | D120: Prensa cabos em termoplástico para cabo elétrico entre 6,0mm² e 12,0mm² | E120: UN | F120: 24 | I120: 24 | J120: 5.01 | K120: 120.24 | M120: 0 | O120: 0 | P120: 0 | R120: 0 | S120: 0 | U120: 0 | V120: 0 | X120: 0 | Y120: 0 | AA120: 0 | AB120: 0 | AD120: 0 | AE120: 0 | AG120: 0 | AH120: 0 | AJ120: 0 | AK120: 0 | AL120: 0 | AM120: 0 | AN120: 0 | AO120: 24 | AP120: 120.24 | AQ120: 0 | AS120: 0 | AT120: NÃO MEDIDO
A121: Planilhado | C121: 16132.8.7.064U | D121: Tampa metálica p/ condulete 3/4" p/tomada | E121: UN | F121: 10 | I121: 10 | J121: 5.42 | K121: 54.2 | M121: 0 | O121: 0 | P121: 0 | R121: 0 | S121: 0 | U121: 0 | V121: 0 | X121: 0 | Y121: 0 | AA121: 0 | AB121: 0 | AD121: 0 | AE121: 0 | AG121: 0 | AH121: 0 | AJ121: 0 | AK121: 0 | AL121: 0 | AM121: 0 | AN121: 0 | AO121: 10 | AP121: 54.2 | AQ121: 0 | AS121: 0 | AT121: NÃO MEDIDO
A122: Planilhado | C122: 16132.8.7.066U | D122: Tampa metálica p/ condulete 3/4", c/ 2 seções | E122: UN | F122: 3 | I122: 3 | J122: 5.52 | K122: 16.56 | M122: 0 | O122: 0 | P122: 0 | R122: 0 | S122: 0 | U122: 0 | V122: 0 | X122: 0 | Y122: 0 | AA122: 0 | AB122: 0 | AD122: 0 | AE122: 0 | AG122: 0 | AH122: 0 | AJ122: 0 | AK122: 0 | AL122: 0 | AM122: 0 | AN122: 0 | AO122: 3 | AP122: 16.56 | AQ122: 0 | AS122: 0 | AT122: NÃO MEDIDO
A123: Planilhado | C123: 16135.8.1.21U | D123: Condulete de alumínio multi-uso tipo ''X'' 3/4" c/ tampa cega IP 54 - c/ mínimo 2 tampões de vedação - Fornec. e Inst | E123: UN | F123: 35 | I123: 35 | J123: 64.29 | K123: 2250.15 | M123: 0 | O123: 0 | P123: 0 | R123: 0 | S123: 0 | U123: 0 | V123: 0 | X123: 0 | Y123: 0 | AA123: 0 | AB123: 0 | AD123: 0 | AE123: 0 | AG123: 0 | AH123: 0 | AJ123: 0 | AK123: 0 | AL123: 0 | AM123: 0 | AN123: 0 | AO123: 35 | AP123: 2250.15 | AQ123: 0 | AS123: 0 | AT123: NÃO MEDIDO
A124: Planilhado | C124: 16142.8.8.044U | D124: Chave guarda motor trifásico 5CV/220V c/chave magnética - fornecimento e instalação (83491-SINAPI) | E124: UN | F124: 1 | I124: 1 | J124: 400.33 | K124: 400.33 | M124: 0 | O124: 0 | P124: 0 | R124: 0 | S124: 0 | U124: 0 | V124: 0 | X124: 0 | Y124: 0 | AA124: 0 | AB124: 0 | AD124: 0 | AE124: 0 | AG124: 0 | AH124: 0 | AJ124: 0 | AK124: 0 | AL124: 0 | AM124: 0 | AN124: 0 | AO124: 1 | AP124: 400.33 | AQ124: 0 | AS124: 0 | AT124: NÃO MEDIDO
A125: Planilhado | C125: 16143.8.6.15U | D125: Tomada 2P+T 10A-250V p/ condulete/cx. passagem (4x2'' ou 4x4''), preta/branca, conf.padrão brasileiro | E125: UN | F125: 10 | I125: 10 | J125: 23.25 | K125: 232.5 | M125: 0 | O125: 0 | P125: 0 | R125: 0 | S125: 0 | U125: 0 | V125: 0 | X125: 0 | Y125: 0 | AA125: 0 | AB125: 0 | AD125: 0 | AE125: 0 | AG125: 0 | AH125: 0 | AJ125: 0 | AK125: 0 | AL125: 0 | AM125: 0 | AN125: 0 | AO125: 10 | AP125: 232.5 | AQ125: 0 | AS125: 0 | AT125: NÃO MEDIDO
A126: Planilhado | C126: 16300.8.1.10U | D126: Caixa de inspeção PVC p/aterramento Ø 300mm e profund.min.300mm c/tampa F.F.c/inscrição | E126: UN | F126: 1 | I126: 1 | J126: 200.24 | K126: 200.24 | M126: 0 | O126: 0 | P126: 0 | R126: 0 | S126: 0 | U126: 0 | V126: 0 | X126: 0 | Y126: 0 | AA126: 0 | AB126: 0 | AD126: 0 | AE126: 0 | AG126: 0 | AH126: 0 | AJ126: 0 | AK126: 0 | AL126: 0 | AM126: 0 | AN126: 0 | AO126: 1 | AP126: 200.24 | AQ126: 0 | AS126: 0 | AT126: NÃO MEDIDO
A127: Planilhado | C127: 16510.8.5.940U | D127: Luminária de sobrepor 2x18W c/ lampadas LEDTUB 18W / 220V, driver incorporado na lampada, corpo/refletor em chapa de aço tratada e pintada na cor branca | E127: UN | F127: 13 | I127: 13 | J127: 441.27 | K127: 5736.51 | M127: 0 | O127: 0 | P127: 0 | R127: 0 | S127: 0 | U127: 0 | V127: 0 | X127: 0 | Y127: 0 | AA127: 0 | AB127: 0 | AD127: 0 | AE127: 0 | AG127: 0 | AH127: 0 | AJ127: 0 | AK127: 0 | AL127: 0 | AM127: 0 | AN127: 0 | AO127: 13 | AP127: 5736.51 | AQ127: 0 | AS127: 0 | AT127: NÃO MEDIDO
A128: Planilhado | C128: 16973.8.1.11U | D128: Duto corrugado helicoidal na cor preta, de polietileno de alta densidade (PEAD), incl.conexões e kit vedação 38mm (1 1/2")(06.069.0105-0 EMOP) | E128: M | F128: 50 | I128: 50 | J128: 15.36 | K128: 768 | M128: 0 | O128: 0 | P128: 0 | R128: 0 | S128: 0 | U128: 0 | V128: 0 | X128: 0 | Y128: 0 | AA128: 0 | AB128: 0 | AD128: 0 | AE128: 0 | AG128: 0 | AH128: 0 | AJ128: 0 | AK128: 0 | AL128: 0 | AM128: 0 | AN128: 0 | AO128: 50 | AP128: 768 | AQ128: 0 | AS128: 0 | AT128: NÃO MEDIDO
A129: Planilhado | C129: 1708422U | D129: Anilha plástica de identificação em PVC (letras A, V, P, R, T, C e X) para cabos até 6,0mm² | E129: UN | F129: 30 | I129: 30 | J129: 1.05 | K129: 31.5 | M129: 0 | O129: 0 | P129: 0 | R129: 0 | S129: 0 | U129: 0 | V129: 0 | X129: 0 | Y129: 0 | AA129: 0 | AB129: 0 | AD129: 0 | AE129: 0 | AG129: 0 | AH129: 0 | AJ129: 0 | AK129: 0 | AL129: 0 | AM129: 0 | AN129: 0 | AO129: 30 | AP129: 31.5 | AQ129: 0 | AS129: 0 | AT129: NÃO MEDIDO
A130: Planilhado | C130: 1708423U | D130: Anilha plástica de identificação em PVC (letras A, V, P, R, T, C e X) para cabos 10,0mm² até 16,0mm² | E130: UN | F130: 40 | I130: 40 | J130: 1.08 | K130: 43.2 | M130: 0 | O130: 0 | P130: 0 | R130: 0 | S130: 0 | U130: 0 | V130: 0 | X130: 0 | Y130: 0 | AA130: 0 | AB130: 0 | AD130: 0 | AE130: 0 | AG130: 0 | AH130: 0 | AJ130: 0 | AK130: 0 | AL130: 0 | AM130: 0 | AN130: 0 | AO130: 40 | AP130: 43.2 | AQ130: 0 | AS130: 0 | AT130: NÃO MEDIDO
A131: Planilhado | C131: 170899866U | D131: Ligação de cabos (4x#25mm2(3F+N))+1(1x#16mm2(T)), c/fornecimento e instalação de disjuntor de 80A 10KA no QGBT, no mesmo padrão dos existentes, p/alimentação do QDLT-1.BAR , conforme diagrama | E131: UN | F131: 1 | I131: 1 | J131: 307.83 | K131: 307.83 | M131: 0 | O131: 0 | P131: 0 | R131: 0 | S131: 0 | U131: 0 | V131: 0 | X131: 0 | Y131: 0 | AA131: 0 | AB131: 0 | AD131: 0 | AE131: 0 | AG131: 0 | AH131: 0 | AJ131: 0 | AK131: 0 | AL131: 0 | AM131: 0 | AN131: 0 | AO131: 1 | AP131: 307.83 | AQ131: 0 | AS131: 0 | AT131: NÃO MEDIDO
A132: Planilhado | C132: 17089986U | D132: Painel de distribuição de baixa tensão, Padrão TTA (NBR.IEC 60439-1), forma 1, QDLT-BAR1 (220/127V), conforme diagrama e especificação técnica. Totalmente montado e pronto para funcionar - Instalação | E132: UN | F132: 1 | I132: 1 | J132: 224.81 | K132: 224.81 | M132: 0 | O132: 0 | P132: 0 | R132: 0 | S132: 0 | U132: 0 | V132: 0 | X132: 0 | Y132: 0 | AA132: 0 | AB132: 0 | AD132: 0 | AE132: 0 | AG132: 0 | AH132: 0 | AJ132: 0 | AK132: 0 | AL132: 0 | AM132: 0 | AN132: 0 | AO132: 1 | AP132: =K132-AM132 -> 224.81 | AQ132: 0 | AS132: 0 | AT132: NÃO MEDIDO
A133: Planilhado | C133: 17113499U | D133: Caixa de passagem em bloco de concreto com enchimento, 400x400x400mm | E133: UN | F133: 5 | I133: 5 | J133: 136.07 | K133: 680.35 | M133: 0 | O133: 0 | P133: 0 | R133: 0 | S133: 0 | U133: 0 | V133: 0 | X133: 0 | Y133: 0 | AA133: 0 | AB133: 0 | AD133: 0 | AE133: 0 | AG133: 0 | AH133: 0 | AJ133: 0 | AK133: 0 | AL133: 0 | AM133: 0 | AN133: 0 | AO133: 5 | AP133: 680.35 | AQ133: 0 | AS133: 0 | AT133: NÃO MEDIDO
A134: Planilhado | C134: 1712522U | D134: Etiqueta para identificação, interior/ exterior, nas dimensões minímas de 40x10mm, em vinil interno/externo, adesivo permanente, resistente a líquidos e poeira/sujeira impressa c/ fundo branco e letras na cor preta | E134: UN | F134: 20 | I134: 20 | J134: 0.43 | K134: 8.6 | M134: 0 | O134: 0 | P134: 0 | R134: 0 | S134: 0 | U134: 0 | V134: 0 | X134: 0 | Y134: 0 | AA134: 0 | AB134: 0 | AD134: 0 | AE134: 0 | AG134: 0 | AH134: 0 | AJ134: 0 | AK134: 0 | AL134: 0 | AM134: 0 | AN134: 0 | AO134: 20 | AP134: 8.6 | AQ134: 0 | AS134: 0 | AT134: NÃO MEDIDO
A135: Planilhado | C135: 171360U | D135: Plug corpo monobloco termo-plástico 10A 250V-2P+T em linha pinos cilíndricos 4,0mm - macho | E135: UN | F135: 13 | I135: 13 | J135: 24.24 | K135: 315.12 | M135: 0 | O135: 0 | P135: 0 | R135: 0 | S135: 0 | U135: 0 | V135: 0 | X135: 0 | Y135: 0 | AA135: 0 | AB135: 0 | AD135: 0 | AE135: 0 | AG135: 0 | AH135: 0 | AJ135: 0 | AK135: 0 | AL135: 0 | AM135: 0 | AN135: 0 | AO135: 13 | AP135: 315.12 | AQ135: 0 | AS135: 0 | AT135: NÃO MEDIDO
A136: Planilhado | C136: 171361U | D136: Plug corpo monobloco termo-plástico 10A 250V-2P+T em linha pinos cilíndricos 4mm - fêmea | E136: UN | F136: 13 | I136: 13 | J136: 15.66 | K136: 203.58 | M136: 0 | O136: 0 | P136: 0 | R136: 0 | S136: 0 | U136: 0 | V136: 0 | X136: 0 | Y136: 0 | AA136: 0 | AB136: 0 | AD136: 0 | AE136: 0 | AG136: 0 | AH136: 0 | AJ136: 0 | AK136: 0 | AL136: 0 | AM136: 0 | AN136: 0 | AO136: 13 | AP136: 203.58 | AQ136: 0 | AS136: 0 | AT136: NÃO MEDIDO
A137: Planilhado | C137: 17150445U | D137: Anilha plástica de identificação em PVC (0 a 9) para cabos até 6,0mm² | E137: UN | F137: 30 | I137: 30 | J137: 1.01 | K137: 30.3 | M137: 0 | O137: 0 | P137: 0 | R137: 0 | S137: 0 | U137: 0 | V137: 0 | X137: 0 | Y137: 0 | AA137: 0 | AB137: 0 | AD137: 0 | AE137: 0 | AG137: 0 | AH137: 0 | AJ137: 0 | AK137: 0 | AL137: 0 | AM137: 0 | AN137: 0 | AO137: 30 | AP137: 30.3 | AQ137: 0 | AS137: 0 | AT137: =IF(AS137<>0,"MEDIDO","NÃO MEDIDO") -> NÃO MEDIDO
A138: Planilhado | C138: 17150446U | D138: Anilha plástica de identificação em PVC (0 a 9) para cabos 10,0mm² até 16,0mm² | E138: UN | F138: 40 | I138: 40 | J138: 1.07 | K138: 42.8 | M138: 0 | O138: 0 | P138: 0 | R138: 0 | S138: 0 | U138: 0 | V138: 0 | X138: 0 | Y138: 0 | AA138: 0 | AB138: 0 | AD138: 0 | AE138: 0 | AG138: 0 | AH138: 0 | AJ138: 0 | AK138: 0 | AL138: 0 | AM138: 0 | AN138: 0 | AO138: 40 | AP138: 42.8 | AQ138: 0 | AS138: 0 | AT138: =IF(AS138<>0,"MEDIDO","NÃO MEDIDO") -> NÃO MEDIDO
A139: Planilhado | C139: 17311899U | D139: Suspensão p/tirante incl. fixações | E139: UN | F139: 14 | I139: 14 | J139: 9.49 | K139: 132.86 | M139: 0 | O139: 0 | P139: 0 | R139: 0 | S139: 0 | U139: 0 | V139: 0 | X139: 0 | Y139: 0 | AA139: 0 | AB139: 0 | AD139: 0 | AE139: 0 | AG139: 0 | AH139: 0 | AJ139: 0 | AK139: 0 | AL139: 0 | AM139: 0 | AN139: 0 | AO139: 14 | AP139: 132.86 | AQ139: 0 | AS139: 0 | AT139: NÃO MEDIDO
A140: Planilhado | C140: 19079994U | D140: Conector em alumínio p/ condulete múltiplo IP 54 de Ø 3/4'', c/ rosca BSP e parafuso - Forn. e Inst . | E140: UN | F140: 100 | I140: 100 | J140: 4.8 | K140: 480 | M140: 0 | O140: 0 | P140: 0 | R140: 0 | S140: 0 | U140: 0 | V140: 0 | X140: 0 | Y140: 0 | AA140: 0 | AB140: 0 | AD140: 0 | AE140: 0 | AG140: 0 | AH140: 0 | AJ140: 0 | AK140: 0 | AL140: 0 | AM140: 0 | AN140: 0 | AO140: 100 | AP140: 480 | AQ140: 0 | AS140: 0 | AT140: NÃO MEDIDO
A141: Planilhado | C141: 17089986E | D141: Painel de distribuição de baixa tensão, Padrão TTA (NBR.IEC 60439-1), forma 1, QDLT-BAR1 (220/127V), conforme diagrama e especificação técnica. Totalmente montado e pronto para funcionar - Fornecimento | E141: UN | F141: 1 | I141: 1 | J141: 4246.5 | K141: 4246.5 | M141: 0 | O141: 0 | P141: 0 | R141: 0 | S141: 0 | U141: 0 | V141: 0 | X141: 0 | Y141: 0 | AA141: 0 | AB141: 0 | AD141: 0 | AE141: 0 | AG141: 0 | AH141: 0 | AJ141: 0 | AK141: 0 | AL141: 0 | AM141: 0 | AN141: 0 | AO141: 1 | AP141: 4246.5 | AQ141: 0 | AS141: =INDEX($N$10:$AK$469,ROW()-8,MATCH($AS$10,$N$10:$AK$10,0)) -> 0 | AT141: NÃO MEDIDO
A142: Família | C142: 20900 | D142: TAPUMES E ALOJAMENTOS | I142: 0 | K142: 0 | M142: 0 | O142: 0 | P142: 0 | R142: 0 | S142: 0 | U142: 0 | V142: 0 | X142: 0 | Y142: 0 | AA142: 0 | AB142: 0 | AD142: 0 | AE142: 0 | AG142: 0 | AH142: 0 | AJ142: 0 | AK142: 0 | AL142: 0 | AM142: 0 | AN142: 0 | AO142: 0 | AP142: 0 | AQ142: 0 | AS142: 0 | AT142: =IF(COUNTIF(AT143:AT153,"MEDIDO")>0,"MEDIDO","NÃO MEDIDO") -> NÃO MEDIDO
A143: Planilhado | C143: 01520.8.2.101U | D143: Abrigo provisório metálico tipo contêiner (6,00x2,40x2,55m) constituído por um módulo tipo escritório c/ WC e almoxarifado - aluguel mensal | E143: UNXMES | F143: 6 | I143: 6 | J143: 953.96 | K143: 5723.76 | M143: 0 | O143: 0 | P143: 0 | R143: 0 | S143: 0 | U143: 0 | V143: 0 | X143: 0 | Y143: 0 | AA143: 0 | AB143: 0 | AD143: 0 | AE143: 0 | AG143: 0 | AH143: 0 | AJ143: 0 | AK143: 0 | AL143: 0 | AM143: 0 | AN143: 0 | AO143: 6 | AP143: 5723.76 | AQ143: 0 | AS143: 0 | AT143: NÃO MEDIDO
A144: Planilhado | C144: 01520.8.2.129U | D144: Abrigo Provisório metálico tipo contêiner (6,00x2,40x2,55m) constituído por um módulo tipo vestiário c/ WC (2 chuveiros, 2 vasos, 2 lavat. e 1 mictório) - aluguel mensal | E144: UNXMES | F144: 6 | I144: 6 | J144: 1052.64 | K144: 6315.84 | M144: 0 | O144: 0 | P144: 0 | R144: 0 | S144: 0 | U144: 0 | V144: 0 | X144: 0 | Y144: 0 | AA144: 0 | AB144: 0 | AD144: 0 | AE144: 0 | AG144: 0 | AH144: 0 | AJ144: 0 | AK144: 0 | AL144: 0 | AM144: 0 | AN144: 0 | AO144: 6 | AP144: 6315.84 | AQ144: 0 | AS144: 0 | AT144: NÃO MEDIDO
A145: Planilhado | C145: 01520.8.2.3U | D145: Carga e descarga de contêiner (04.013.0015-0 EMOP) | E145: UN | F145: 4 | I145: 4 | J145: 71.04 | K145: 284.16 | M145: 0 | O145: 0 | P145: 0 | R145: 0 | S145: 0 | U145: 0 | V145: 0 | X145: 0 | Y145: 0 | AA145: 0 | AB145: 0 | AD145: 0 | AE145: 0 | AG145: 0 | AH145: 0 | AJ145: 0 | AK145: 0 | AL145: 0 | AM145: 0 | AN145: 0 | AO145: 4 | AP145: 284.16 | AQ145: 0 | AS145: 0 | AT145: NÃO MEDIDO
A146: Planilhado | C146: 01520.8.2.7U | D146: Transporte de contêiner (04.005.0300-0 EMOP) | E146: UNXKM | F146: 60 | I146: 60 | J146: 27.71 | K146: 1662.6 | M146: 0 | O146: 0 | P146: 0 | R146: 0 | S146: 0 | U146: 0 | V146: 0 | X146: 0 | Y146: 0 | AA146: 0 | AB146: 0 | AD146: 0 | AE146: 0 | AG146: 0 | AH146: 0 | AJ146: 0 | AK146: 0 | AL146: 0 | AM146: =SUMIF($N$10:$AK$11,"COM DESCONTO",N146:AK146) -> 0 | AN146: =SUMIF($N$10:$AK$11,"SEM DESCONTO",N146:AK146) -> 0 | AO146: =I146-AL146 -> 60 | AP146: =K146-AM146 -> 1662.6 | AQ146: =M146-AN146 -> 0 | AS146: 0 | AT146: NÃO MEDIDO
A147: Planilhado | C147: 02.101.0000200.SER-U | D147: Tapume de proteção com telha trapezoidal em aço galvanizado # 0,43 mm em estrutura de madeira | E147: M2 | F147: 202.3 | I147: 202.3 | J147: 63.25 | K147: 12795.48 | M147: 0 | O147: =ROUND($N147*$J147,2) -> 0 | P147: =ROUND($N147*$L147,2) -> 0 | R147: =ROUND($Q147*$J147,2) -> 0 | S147: =ROUND($Q147*$L147,2) -> 0 | U147: =ROUND($T147*$J147,2) -> 0 | V147: =ROUND($T147*$L147,2) -> 0 | X147: =ROUND($W147*$J147,2) -> 0 | Y147: =ROUND($W147*$L147,2) -> 0 | AA147: =ROUND($Z147*$J147,2) -> 0 | AB147: =ROUND($Z147*$L147,2) -> 0 | AD147: =ROUND($AC147*$J147,2) -> 0 | AE147: =ROUND($AC147*$L147,2) -> 0 | AG147: =ROUND($AF147*$J147,2) -> 0 | AH147: =ROUND($AF147*$L147,2) -> 0 | AJ147: =ROUND($AI147*$J147,2) -> 0 | AK147: =ROUND($AI147*$L147,2) -> 0 | AL147: 0 | AM147: 0 | AN147: 0 | AO147: 202.3 | AP147: 12795.48 | AQ147: 0 | AS147: 0 | AT147: NÃO MEDIDO
A148: Planilhado | C148: 02.101.0000301.SER-U | D148: Abrigo provisório de madeira para refeitório e/ou carpintaria e/ou central de armadura | E148: M2 | F148: 71.6 | I148: =F148+G148+H148 -> 71.6 | J148: 411.55 | K148: =ROUND((F148*$J148),2)+ROUND((G148*$J148),2)+ROUND((H148*$J148),2) -> 29466.98 | M148: 0 | O148: 0 | P148: 0 | R148: 0 | S148: 0 | U148: 0 | V148: 0 | X148: 0 | Y148: 0 | AA148: 0 | AB148: 0 | AD148: 0 | AE148: 0 | AG148: 0 | AH148: 0 | AJ148: 0 | AK148: 0 | AL148: 0 | AM148: 0 | AN148: 0 | AO148: 71.6 | AP148: 29466.98 | AQ148: 0 | AS148: 0 | AT148: NÃO MEDIDO
A149: Planilhado | C149: 02.101.000100.SER | D149: Passadiços de madeira para pedestres, com tábua | E149: M2 | F149: 13.6 | I149: 13.6 | J149: 106.1 | K149: 1442.96 | M149: =ROUND(I149*L149,2) -> 0 | O149: 0 | P149: 0 | R149: 0 | S149: 0 | U149: 0 | V149: 0 | X149: 0 | Y149: 0 | AA149: 0 | AB149: 0 | AD149: 0 | AE149: 0 | AG149: 0 | AH149: 0 | AJ149: 0 | AK149: 0 | AL149: 0 | AM149: 0 | AN149: 0 | AO149: 13.6 | AP149: 1442.96 | AQ149: 0 | AS149: 0 | AT149: NÃO MEDIDO
A150: Planilhado | C150: 02825.8.12.499U | D150: Portão para tapume com telha trapezoidal em aço galvanizado # 0,43 mm em estrutura de madeira | E150: M2 | F150: 6 | I150: 6 | J150: 100.81 | K150: 604.86 | M150: 0 | O150: 0 | P150: 0 | R150: 0 | S150: 0 | U150: 0 | V150: 0 | X150: 0 | Y150: 0 | AA150: 0 | AB150: 0 | AD150: 0 | AE150: 0 | AG150: 0 | AH150: 0 | AJ150: 0 | AK150: 0 | AL150: =SUMIF($N$9:$AK$9,"QUANTIDADE",N150:AK150) -> 0 | AM150: 0 | AN150: 0 | AO150: 6 | AP150: 604.86 | AQ150: 0 | AS150: 0 | AT150: NÃO MEDIDO
A151: Planilhado | C151: 040795U | D151: Guarda-corpo de madeira para acessar os abrigos provisórios, (escada/plataforma) | E151: M | F151: 12.6 | I151: 12.6 | J151: 58.07 | K151: 731.68 | M151: 0 | O151: 0 | P151: 0 | R151: 0 | S151: 0 | U151: 0 | V151: 0 | X151: 0 | Y151: 0 | AA151: 0 | AB151: 0 | AD151: 0 | AE151: 0 | AG151: 0 | AH151: 0 | AJ151: 0 | AK151: 0 | AL151: 0 | AM151: 0 | AN151: 0 | AO151: 12.6 | AP151: 731.68 | AQ151: 0 | AS151: 0 | AT151: =IF(AS151<>0,"MEDIDO","NÃO MEDIDO") -> NÃO MEDIDO
A152: Planilhado | C152: 040799U | D152: Escada de madeira para acessar os abrigos provisórios | E152: M | F152: 8.6 | I152: 8.6 | J152: 116.55 | K152: 1002.33 | M152: 0 | O152: 0 | P152: 0 | R152: 0 | S152: 0 | U152: 0 | V152: 0 | X152: 0 | Y152: 0 | AA152: 0 | AB152: 0 | AD152: 0 | AE152: 0 | AG152: 0 | AH152: 0 | AJ152: 0 | AK152: 0 | AL152: 0 | AM152: 0 | AN152: 0 | AO152: 8.6 | AP152: 1002.33 | AQ152: 0 | AS152: 0 | AT152: NÃO MEDIDO
A153: Planilhado | C153: 10440.8.2.1U | D153: Plataforma de acesso aos abrigos provisórios em madeira | E153: M2 | F153: 7.7 | I153: 7.7 | J153: 96.04 | K153: 739.51 | M153: 0 | O153: 0 | P153: 0 | R153: 0 | S153: 0 | U153: 0 | V153: 0 | X153: 0 | Y153: 0 | AA153: 0 | AB153: 0 | AD153: 0 | AE153: 0 | AG153: 0 | AH153: 0 | AJ153: 0 | AK153: 0 | AL153: 0 | AM153: 0 | AN153: 0 | AO153: 7.7 | AP153: 739.51 | AQ153: 0 | AS153: 0 | AT153: NÃO MEDIDO
A154: Família | C154: 21000 | D154: LOCAÇÃO DA OBRA | I154: 0 | K154: 0 | M154: 0 | O154: 0 | P154: 0 | R154: 0 | S154: 0 | U154: 0 | V154: 0 | X154: 0 | Y154: 0 | AA154: 0 | AB154: 0 | AD154: 0 | AE154: 0 | AG154: 0 | AH154: 0 | AJ154: 0 | AK154: 0 | AL154: 0 | AM154: 0 | AN154: 0 | AO154: 0 | AP154: 0 | AQ154: 0 | AS154: 0 | AT154: =IF(COUNTIF(AT155:AT158,"MEDIDO")>0,"MEDIDO","NÃO MEDIDO") -> NÃO MEDIDO
A155: Planilhado | C155: 02.101.0000050.SER-U | D155: Placa de identificação de obra tipo banner em lona, incl.pintura e suportes de madeira | E155: M2 | F155: 3.2 | I155: 3.2 | J155: 211.09 | K155: 675.49 | M155: 0 | O155: 0 | P155: 0 | R155: 0 | S155: 0 | U155: 0 | V155: 0 | X155: 0 | Y155: 0 | AA155: 0 | AB155: 0 | AD155: 0 | AE155: 0 | AG155: 0 | AH155: 0 | AJ155: 0 | AK155: 0 | AL155: 0 | AM155: 0 | AN155: 0 | AO155: 3.2 | AP155: 675.49 | AQ155: 0 | AS155: 0 | AT155: NÃO MEDIDO
A156: Planilhado | C156: 02.101.00130.SER-U | D156: Placa de sinalização p/obra em chapa galvanizada nº 22, nas dimensões 1,00x0,80m, inclusive pintura | E156: UN | F156: 3 | I156: =F156+G156+H156 -> 3 | J156: 212.89 | K156: =ROUND((F156*$J156),2)+ROUND((G156*$J156),2)+ROUND((H156*$J156),2) -> 638.67 | M156: 0 | O156: 0 | P156: 0 | R156: 0 | S156: 0 | U156: 0 | V156: 0 | X156: 0 | Y156: 0 | AA156: 0 | AB156: 0 | AD156: 0 | AE156: 0 | AG156: 0 | AH156: 0 | AJ156: 0 | AK156: 0 | AL156: 0 | AM156: 0 | AN156: 0 | AO156: 3 | AP156: 638.67 | AQ156: 0 | AS156: 0 | AT156: NÃO MEDIDO
A157: Planilhado | C157: 02.104.000005.SER | D157: Gabarito perimétrico para locação da obra | E157: M | F157: 17 | I157: 17 | J157: 60.72 | K157: 1032.24 | M157: =ROUND(I157*L157,2) -> 0 | O157: 0 | P157: 0 | R157: 0 | S157: 0 | U157: 0 | V157: 0 | X157: 0 | Y157: 0 | AA157: 0 | AB157: 0 | AD157: 0 | AE157: 0 | AG157: 0 | AH157: 0 | AJ157: 0 | AK157: 0 | AL157: 0 | AM157: 0 | AN157: 0 | AO157: 17 | AP157: 1032.24 | AQ157: 0 | AS157: 0 | AT157: NÃO MEDIDO
A158: Planilhado | C158: 02.104.000050.SER | D158: Equipe de topografia para serviços de locação e medição em obras | E158: DIA | F158: 5 | I158: =F158+G158+H158 -> 5 | J158: 620.11 | K158: =ROUND((F158*$J158),2)+ROUND((G158*$J158),2)+ROUND((H158*$J158),2) -> 3100.55 | M158: =ROUND(I158*L158,2) -> 0 | O158: 0 | P158: 0 | R158: 0 | S158: 0 | U158: 0 | V158: 0 | X158: 0 | Y158: 0 | AA158: 0 | AB158: 0 | AD158: 0 | AE158: 0 | AG158: 0 | AH158: 0 | AJ158: 0 | AK158: 0 | AL158: 0 | AM158: 0 | AN158: 0 | AO158: 5 | AP158: 3100.55 | AQ158: 0 | AS158: 0 | AT158: =IF(AS158<>0,"MEDIDO","NÃO MEDIDO") -> NÃO MEDIDO
A159: Família | C159: 3 | D159: MOVIMENTO DE TERRA | I159: 0 | K159: 0 | M159: 0 | O159: 0 | P159: 0 | R159: 0 | S159: 0 | U159: 0 | V159: 0 | X159: 0 | Y159: 0 | AA159: 0 | AB159: 0 | AD159: 0 | AE159: 0 | AG159: 0 | AH159: 0 | AJ159: 0 | AK159: 0 | AL159: 0 | AM159: 0 | AN159: 0 | AO159: 0 | AP159: 0 | AQ159: 0 | AS159: 0 | AT159: =IF(COUNTIF(AT160:AT167,"MEDIDO")>0,"MEDIDO","NÃO MEDIDO") -> NÃO MEDIDO
A160: Família | C160: 30200 | D160: ESCAVAÇÕES, CARGAS E TRANSPORTES | I160: 0 | K160: 0 | M160: 0 | O160: 0 | P160: 0 | R160: 0 | S160: 0 | U160: 0 | V160: 0 | X160: 0 | Y160: 0 | AA160: 0 | AB160: 0 | AD160: 0 | AE160: 0 | AG160: 0 | AH160: 0 | AJ160: 0 | AK160: 0 | AL160: 0 | AM160: 0 | AN160: 0 | AO160: 0 | AP160: 0 | AQ160: 0 | AS160: 0 | AT160: =IF(COUNTIF(AT161:AT163,"MEDIDO")>0,"MEDIDO","NÃO MEDIDO") -> NÃO MEDIDO
A161: Planilhado | C161: 02.105.000010.SER | D161: Escavação mecanizada de vala em solo de 1ª categoria, profundidade até 4 m | E161: M3 | F161: 46.6 | I161: 46.6 | J161: 7.93 | K161: 369.54 | M161: 0 | O161: 0 | P161: 0 | R161: 0 | S161: 0 | U161: 0 | V161: 0 | X161: 0 | Y161: 0 | AA161: 0 | AB161: 0 | AD161: 0 | AE161: 0 | AG161: 0 | AH161: 0 | AJ161: 0 | AK161: 0 | AL161: 0 | AM161: 0 | AN161: 0 | AO161: 46.6 | AP161: 369.54 | AQ161: 0 | AS161: 0 | AT161: NÃO MEDIDO
A162: Planilhado | C162: 02.105.000060.SER | D162: Escavação manual de vala em solo de 1ª categoria profundidade até 2 m | E162: M3 | F162: 29 | I162: 29 | J162: 64.53 | K162: 1871.37 | M162: 0 | O162: 0 | P162: 0 | R162: 0 | S162: 0 | U162: 0 | V162: 0 | X162: 0 | Y162: 0 | AA162: 0 | AB162: 0 | AD162: 0 | AE162: 0 | AG162: 0 | AH162: 0 | AJ162: 0 | AK162: 0 | AL162: 0 | AM162: 0 | AN162: 0 | AO162: 29 | AP162: 1871.37 | AQ162: 0 | AS162: 0 | AT162: NÃO MEDIDO
A163: Planilhado | C163: 02.105.000066.SER | D163: Escoramento contínuo de vala empregando pranchas e longarinas de peroba | E163: M2 | F163: 15.2 | I163: 15.2 | J163: 134.49 | K163: 2044.25 | M163: 0 | O163: 0 | P163: 0 | R163: 0 | S163: 0 | U163: 0 | V163: 0 | X163: 0 | Y163: 0 | AA163: 0 | AB163: 0 | AD163: 0 | AE163: 0 | AG163: 0 | AH163: 0 | AJ163: 0 | AK163: 0 | AL163: 0 | AM163: 0 | AN163: 0 | AO163: 15.2 | AP163: 2044.25 | AQ163: 0 | AS163: 0 | AT163: NÃO MEDIDO
A164: Família | C164: 30300 | D164: ATERRO E COMPACTAÇÃO | I164: 0 | K164: 0 | M164: 0 | O164: 0 | P164: 0 | R164: 0 | S164: 0 | U164: 0 | V164: 0 | X164: 0 | Y164: 0 | AA164: 0 | AB164: 0 | AD164: 0 | AE164: 0 | AG164: 0 | AH164: 0 | AJ164: 0 | AK164: 0 | AL164: 0 | AM164: 0 | AN164: 0 | AO164: 0 | AP164: 0 | AQ164: 0 | AS164: 0 | AT164: =IF(COUNTIF(AT165:AT167,"MEDIDO")>0,"MEDIDO","NÃO MEDIDO") -> NÃO MEDIDO
A165: Planilhado | C165: 02.105.000072.SER | D165: Reaterro manual de vala | E165: M3 | F165: 29 | I165: 29 | J165: 7.26 | K165: 210.54 | M165: 0 | O165: 0 | P165: 0 | R165: 0 | S165: 0 | U165: 0 | V165: 0 | X165: 0 | Y165: 0 | AA165: 0 | AB165: 0 | AD165: 0 | AE165: 0 | AG165: 0 | AH165: 0 | AJ165: 0 | AK165: 0 | AL165: 0 | AM165: 0 | AN165: 0 | AO165: 29 | AP165: 210.54 | AQ165: 0 | AS165: 0 | AT165: NÃO MEDIDO
A166: Planilhado | C166: 02.105.000075.SER | D166: Reaterro mecanizado de vala empregando compactador de placa vibratória em camadas de 20 cm | E166: M3 | F166: 41.2 | I166: 41.2 | J166: 12.23 | K166: 503.88 | M166: 0 | O166: 0 | P166: 0 | R166: 0 | S166: 0 | U166: 0 | V166: 0 | X166: 0 | Y166: 0 | AA166: 0 | AB166: 0 | AD166: 0 | AE166: 0 | AG166: 0 | AH166: 0 | AJ166: 0 | AK166: 0 | AL166: 0 | AM166: 0 | AN166: 0 | AO166: 41.2 | AP166: 503.88 | AQ166: 0 | AS166: 0 | AT166: =IF(COUNTIF(AT167:AT172,"MEDIDO")>0,"MEDIDO","NÃO MEDIDO") -> NÃO MEDIDO
A167: Planilhado | C167: 030101U | D167: Regularização manual de solo c/nivelamento e apiloamento (20014 SBC) | E167: M3 | F167: 1 | I167: 1 | J167: 80.84 | K167: 80.84 | M167: 0 | O167: 0 | P167: 0 | R167: 0 | S167: 0 | U167: 0 | V167: 0 | X167: 0 | Y167: 0 | AA167: 0 | AB167: 0 | AD167: 0 | AE167: 0 | AG167: 0 | AH167: 0 | AJ167: 0 | AK167: 0 | AL167: 0 | AM167: 0 | AN167: 0 | AO167: 1 | AP167: 80.84 | AQ167: 0 | AS167: 0 | AT167: =IF(AS167<>0,"MEDIDO","NÃO MEDIDO") -> NÃO MEDIDO
A168: Família | C168: 4 | D168: SERVIÇOS GERAIS | I168: =F168+G168+H168 -> 0 | K168: =ROUND((F168*$J168),2)+ROUND((G168*$J168),2)+ROUND((H168*$J168),2) -> 0 | M168: 0 | O168: 0 | P168: 0 | R168: 0 | S168: 0 | U168: 0 | V168: 0 | X168: 0 | Y168: 0 | AA168: 0 | AB168: 0 | AD168: 0 | AE168: 0 | AG168: 0 | AH168: 0 | AJ168: 0 | AK168: 0 | AL168: 0 | AM168: 0 | AN168: 0 | AO168: 0 | AP168: 0 | AQ168: 0 | AS168: 0 | AT168: =IF(COUNTIF(AT169:AT191,"MEDIDO")>0,"MEDIDO","NÃO MEDIDO") -> NÃO MEDIDO
A169: Família | C169: 40100 | D169: CARGA E TRANSPORTE MANUAL | I169: 0 | K169: 0 | M169: 0 | O169: 0 | P169: 0 | R169: 0 | S169: 0 | U169: 0 | V169: 0 | X169: 0 | Y169: 0 | AA169: 0 | AB169: 0 | AD169: 0 | AE169: 0 | AG169: 0 | AH169: 0 | AJ169: 0 | AK169: 0 | AL169: 0 | AM169: 0 | AN169: 0 | AO169: 0 | AP169: 0 | AQ169: 0 | AS169: 0 | AT169: =IF(COUNTIF(AT170:AT171,"MEDIDO")>0,"MEDIDO","NÃO MEDIDO") -> NÃO MEDIDO
A170: Planilhado | C170: 14515.8.12.1U | D170: Transporte horizontal de material de 1ª cat.ou entulho, em carrinhos, a 30m de distância (05.001.0172-0 EMOP) | E170: M3 | F170: 27.8 | I170: 27.8 | J170: 26.62 | K170: 740.04 | M170: 0 | O170: 0 | P170: 0 | R170: 0 | S170: 0 | U170: 0 | V170: 0 | X170: 0 | Y170: 0 | AA170: 0 | AB170: 0 | AD170: 0 | AE170: 0 | AG170: 0 | AH170: 0 | AJ170: 0 | AK170: 0 | AL170: 0 | AM170: 0 | AN170: 0 | AO170: 27.8 | AP170: 740.04 | AQ170: 0 | AS170: 0 | AT170: =IF(AS170<>0,"MEDIDO","NÃO MEDIDO") -> NÃO MEDIDO
A171: Planilhado | C171: 32.109.0001120.SER-U | D171: Carga manual de entulho e outros | E171: M3 | F171: 27.8 | I171: 27.8 | J171: 11.62 | K171: 323.04 | M171: 0 | O171: 0 | P171: 0 | R171: 0 | S171: 0 | U171: 0 | V171: 0 | X171: 0 | Y171: 0 | AA171: 0 | AB171: 0 | AD171: 0 | AE171: 0 | AG171: 0 | AH171: 0 | AJ171: 0 | AK171: 0 | AL171: 0 | AM171: 0 | AN171: 0 | AO171: 27.8 | AP171: 323.04 | AQ171: 0 | AR171: =SUM(AM171:AM177)*(1-AP6) -> 0 | AS171: 0 | AT171: =IF(AS171<>0,"MEDIDO","NÃO MEDIDO") -> NÃO MEDIDO
A172: Família | C172: 40200 | D172: CARGA E TRANSPORTE MECANIZADO | I172: 0 | K172: 0 | M172: 0 | O172: 0 | P172: 0 | R172: 0 | S172: 0 | U172: 0 | V172: 0 | X172: 0 | Y172: 0 | AA172: 0 | AB172: 0 | AD172: 0 | AE172: 0 | AG172: 0 | AH172: 0 | AJ172: 0 | AK172: 0 | AL172: 0 | AM172: 0 | AN172: 0 | AO172: 0 | AP172: 0 | AQ172: 0 | AS172: 0 | AT172: =IF(COUNTIF(AT173:AT174,"MEDIDO")>0,"MEDIDO","NÃO MEDIDO") -> NÃO MEDIDO
A173: Planilhado | C173: 02.105.000076.SER | D173: Carga mecanizada de terra em caminhão basculante | E173: M3 | F173: 7 | I173: 7 | J173: 3.37 | K173: 23.59 | M173: 0 | O173: 0 | P173: 0 | R173: 0 | S173: 0 | U173: 0 | V173: 0 | X173: 0 | Y173: 0 | AA173: 0 | AB173: 0 | AD173: 0 | AE173: 0 | AG173: 0 | AH173: 0 | AJ173: 0 | AK173: 0 | AL173: 0 | AM173: 0 | AN173: 0 | AO173: 7 | AP173: 23.59 | AQ173: 0 | AS173: 0 | AT173: =IF(COUNTIF(AT174:AT198,"MEDIDO")>0,"MEDIDO","NÃO MEDIDO") -> NÃO MEDIDO
A174: Planilhado | C174: 31.101.10001.SER-U | D174: Transporte e descarga de terra solta, em caminhão basculante de 17t, incl.motorista | E174: M3XKM | F174: 755.4 | I174: 755.4 | J174: 0.64 | K174: 483.46 | M174: 0 | O174: 0 | P174: 0 | R174: 0 | S174: 0 | U174: 0 | V174: 0 | X174: 0 | Y174: 0 | AA174: 0 | AB174: 0 | AD174: 0 | AE174: 0 | AG174: 0 | AH174: 0 | AJ174: 0 | AK174: 0 | AL174: 0 | AM174: 0 | AN174: 0 | AO174: 755.4 | AP174: 483.46 | AQ174: 0 | AS174: 0 | AT174: =IF(COUNTIF(AT175:AT199,"MEDIDO")>0,"MEDIDO","NÃO MEDIDO") -> NÃO MEDIDO
A175: Planilhado | C175: 32.109.0001121.SER-U | D175: Carga e descarga mecanizada de entulho | E175: M3 | F175: 13.6 | I175: 13.6 | J175: 3.43 | K175: 46.65 | M175: 0 | O175: 0 | P175: 0 | R175: 0 | S175: 0 | U175: 0 | V175: 0 | X175: 0 | Y175: 0 | AA175: 0 | AB175: 0 | AD175: 0 | AE175: 0 | AG175: 0 | AH175: 0 | AJ175: 0 | AK175: 0 | AL175: 0 | AM175: 0 | AN175: 0 | AO175: 13.6 | AP175: 46.65 | AQ175: 0 | AS175: 0 | AT175: =IF(AS175<>0,"MEDIDO","NÃO MEDIDO") -> NÃO MEDIDO
A176: Família | C176: 40500 | D176: INSTALAÇÃO DE GUINCHO | I176: 0 | K176: 0 | M176: 0 | O176: 0 | P176: 0 | R176: 0 | S176: 0 | U176: 0 | V176: 0 | X176: 0 | Y176: 0 | AA176: 0 | AB176: 0 | AD176: 0 | AE176: 0 | AG176: 0 | AH176: 0 | AJ176: 0 | AK176: 0 | AL176: 0 | AM176: 0 | AN176: 0 | AO176: 0 | AP176: 0 | AQ176: 0 | AS176: 0 | AT176: =IF(COUNTIF(AT177:AT177,"MEDIDO")>0,"MEDIDO","NÃO MEDIDO") -> NÃO MEDIDO
A177: Planilhado | C177: 31.106.10001.EQH-U | D177: Talha-guincho manual, c/cabo, alavanca, carretel e ganchos, sendo c/capac.içamento 4000kg e de tração 5000kg, inclusive operador - CP | E177: H PROD | F177: 176 | I177: 176 | J177: 23.73 | K177: 4176.48 | M177: 0 | O177: 0 | P177: 0 | R177: 0 | S177: 0 | U177: 0 | V177: 0 | X177: 0 | Y177: 0 | AA177: 0 | AB177: 0 | AD177: 0 | AE177: 0 | AG177: 0 | AH177: 0 | AJ177: 0 | AK177: 0 | AL177: 0 | AM177: 0 | AN177: 0 | AO177: 176 | AP177: 4176.48 | AQ177: 0 | AS177: 0 | AT177: =IF(AS177<>0,"MEDIDO","NÃO MEDIDO") -> NÃO MEDIDO
A178: Família | C178: 40600 | D178: INSTALAÇÃO DE PROTEÇÕES | I178: 0 | K178: 0 | M178: 0 | O178: 0 | P178: 0 | R178: 0 | S178: 0 | U178: 0 | V178: 0 | X178: 0 | Y178: 0 | AA178: 0 | AB178: 0 | AD178: 0 | AE178: 0 | AG178: 0 | AH178: 0 | AJ178: 0 | AK178: 0 | AL178: 0 | AM178: 0 | AN178: 0 | AO178: 0 | AP178: 0 | AQ178: 0 | AS178: 0 | AT178: =IF(COUNTIF(AT179:AT181,"MEDIDO")>0,"MEDIDO","NÃO MEDIDO") -> NÃO MEDIDO
A179: Planilhado | C179: 01560.8.1.112U | D179: Tela fachadeira-fornecimento e instalação - (97062-S) | E179: M2 | F179: 250 | I179: 250 | J179: 5.54 | K179: 1385 | M179: 0 | O179: 0 | P179: 0 | R179: 0 | S179: 0 | U179: 0 | V179: 0 | X179: 0 | Y179: 0 | AA179: 0 | AB179: 0 | AD179: 0 | AE179: 0 | AG179: 0 | AH179: 0 | AJ179: 0 | AK179: 0 | AL179: 0 | AM179: 0 | AN179: 0 | AO179: 250 | AP179: 1385 | AQ179: 0 | AS179: 0 | AT179: =IF(COUNTIF(AT180:AT181,"MEDIDO")>0,"MEDIDO","NÃO MEDIDO") -> NÃO MEDIDO
A180: Planilhado | C180: 02.101.000058.SER | D180: Bandeja salva-vidas secundária em aço, 1,40 m com extensão 0,80 m a 45°, forro com chapa compensado | E180: M | F180: 20.6 | I180: 20.6 | J180: 621.68 | K180: 12806.61 | M180: 0 | O180: 0 | P180: 0 | R180: 0 | S180: 0 | U180: 0 | V180: 0 | X180: 0 | Y180: 0 | AA180: 0 | AB180: 0 | AD180: 0 | AE180: 0 | AG180: 0 | AH180: 0 | AJ180: 0 | AK180: 0 | AL180: 0 | AM180: 0 | AN180: 0 | AO180: 20.6 | AP180: 12806.61 | AQ180: 0 | AS180: 0 | AT180: NÃO MEDIDO
A181: Planilhado | C181: 17003.8.7.03U | D181: Lona tipo leve para proteção de telhados, reutilizado 2 vezes, inclusive retirada. Fornecimento e colocação (05.058.0011-0 EMOP) | E181: M2 | F181: 155 | I181: 155 | J181: 1.31 | K181: 203.05 | M181: 0 | O181: 0 | P181: 0 | R181: 0 | S181: 0 | U181: 0 | V181: 0 | X181: 0 | Y181: 0 | AA181: 0 | AB181: 0 | AD181: 0 | AE181: 0 | AG181: 0 | AH181: 0 | AJ181: 0 | AK181: 0 | AL181: 0 | AM181: 0 | AN181: 0 | AO181: 155 | AP181: 203.05 | AQ181: 0 | AS181: 0 | AT181: NÃO MEDIDO
A182: Família | C182: 40700 | D182: ANDAIMES E OUTROS | I182: 0 | K182: 0 | M182: 0 | O182: 0 | P182: 0 | R182: 0 | S182: 0 | U182: 0 | V182: 0 | X182: 0 | Y182: 0 | AA182: 0 | AB182: 0 | AD182: 0 | AE182: 0 | AG182: 0 | AH182: 0 | AJ182: 0 | AK182: 0 | AL182: 0 | AM182: 0 | AN182: 0 | AO182: 0 | AP182: 0 | AQ182: 0 | AS182: 0 | AT182: =IF(COUNTIF(AT183:AT188,"MEDIDO")>0,"MEDIDO","NÃO MEDIDO") -> NÃO MEDIDO
A183: Planilhado | C183: 01544.8.5.100U | D183: Locação de andaime metálico de encaixe, inclusive sapatas, escadas, rodapé metálico, piso metálico, guarda corpo e fixações necessárias para a montagem do andaime | E183: M2/MÊS | F183: 979.2 | I183: 979.2 | J183: 11.22 | K183: 10986.62 | M183: 0 | O183: 0 | P183: 0 | R183: 0 | S183: 0 | U183: 0 | V183: 0 | X183: 0 | Y183: 0 | AA183: 0 | AB183: 0 | AD183: 0 | AE183: 0 | AG183: 0 | AH183: 0 | AJ183: 0 | AK183: 0 | AL183: 0 | AM183: 0 | AN183: 0 | AO183: 979.2 | AP183: 10986.62 | AQ183: 0 | AS183: 0 | AT183: NÃO MEDIDO
A184: Planilhado | C184: 01544.8.7.1U | D184: Montagem e desmontagem de andaime | E184: M2 | F184: 326.4 | I184: 326.4 | J184: 4.45 | K184: 1452.48 | M184: 0 | O184: 0 | P184: 0 | R184: 0 | S184: 0 | U184: 0 | V184: 0 | X184: 0 | Y184: 0 | AA184: 0 | AB184: 0 | AD184: 0 | AE184: 0 | AG184: 0 | AH184: 0 | AJ184: 0 | AK184: 0 | AL184: 0 | AM184: 0 | AN184: 0 | AO184: 326.4 | AP184: 1452.48 | AQ184: 0 | AS184: 0 | AT184: NÃO MEDIDO
A185: Planilhado | C185: 01544.8.8.3U | D185: Transporte de andaime tubular, cons.área de proj.vert.do andaime, excl.carga, descarga e tempo de espera do caminhão (04.020.0122-0 EMOP) | E185: M2XKM | F185: 9792 | I185: 9792 | J185: 0.16 | K185: 1566.72 | M185: 0 | O185: 0 | P185: 0 | R185: 0 | S185: 0 | U185: 0 | V185: 0 | X185: 0 | Y185: 0 | AA185: 0 | AB185: 0 | AD185: 0 | AE185: 0 | AG185: 0 | AH185: 0 | AJ185: 0 | AK185: 0 | AL185: 0 | AM185: 0 | AN185: 0 | AO185: 9792 | AP185: 1566.72 | AQ185: 0 | AS185: 0 | AT185: =IF(COUNTIF(AT186:AT188,"MEDIDO")>0,"MEDIDO","NÃO MEDIDO") -> NÃO MEDIDO
A186: Planilhado | C186: 05.103.00005100.SER-U | D186: Escoramento metálico, com escoras telescopaveis ou torres de carga, inclusive vigamento principal e secundário, para estrutura convencional de concreto armado - Aluguel (11.050.0010-0 EMOP) | E186: M3XMES | F186: 155.4 | I186: 155.4 | J186: 6.84 | K186: 1062.94 | M186: 0 | O186: 0 | P186: 0 | R186: 0 | S186: 0 | U186: 0 | V186: 0 | X186: 0 | Y186: 0 | AA186: 0 | AB186: 0 | AD186: 0 | AE186: 0 | AG186: 0 | AH186: 0 | AJ186: 0 | AK186: 0 | AL186: 0 | AM186: 0 | AN186: 0 | AO186: 155.4 | AP186: 1062.94 | AQ186: 0 | AS186: 0 | AT186: =IF(AS186<>0,"MEDIDO","NÃO MEDIDO") -> NÃO MEDIDO
A187: Planilhado | C187: 05.103.00005101.SER-U | D187: Montagem e desmontagem de escoramento metálico, compreendendo transporte do material para obra e desta para o depósito, inclusive carga e descarga (11.055.0010-0 EMOP) | E187: M3 | F187: 77.7 | I187: 77.7 | J187: 11.28 | K187: 876.46 | M187: 0 | O187: 0 | P187: 0 | R187: 0 | S187: 0 | U187: 0 | V187: 0 | X187: 0 | Y187: 0 | AA187: 0 | AB187: 0 | AD187: 0 | AE187: 0 | AG187: 0 | AH187: 0 | AJ187: 0 | AK187: 0 | AL187: 0 | AM187: 0 | AN187: 0 | AO187: 77.7 | AP187: 876.46 | AQ187: 0 | AS187: 0 | AT187: =IF(AS187<>0,"MEDIDO","NÃO MEDIDO") -> NÃO MEDIDO
A188: Planilhado | C188: 14515.8.10.01U | D188: Carga e descarga manual de andaime tubular, incl.tempo de espera do caminhão, cons.área proj.vert.(04.021.0010-0 EMOP) | E188: M2 | F188: 326.4 | I188: 326.4 | J188: 0.8 | K188: 261.12 | M188: 0 | O188: 0 | P188: 0 | R188: 0 | S188: 0 | U188: 0 | V188: 0 | X188: 0 | Y188: 0 | AA188: 0 | AB188: 0 | AD188: 0 | AE188: 0 | AG188: 0 | AH188: 0 | AJ188: 0 | AK188: 0 | AL188: 0 | AM188: 0 | AN188: 0 | AO188: 326.4 | AP188: 261.12 | AQ188: 0 | AS188: 0 | AT188: NÃO MEDIDO
A189: Família | C189: 40800 | D189: SEGREGAÇÃO DE RESÍDUOS DA CONSTRUÇÃO CIVIL | I189: 0 | K189: 0 | M189: 0 | O189: 0 | P189: 0 | R189: 0 | S189: 0 | U189: 0 | V189: 0 | X189: 0 | Y189: 0 | AA189: 0 | AB189: 0 | AD189: 0 | AE189: 0 | AG189: 0 | AH189: 0 | AJ189: 0 | AK189: 0 | AL189: 0 | AM189: 0 | AN189: 0 | AO189: 0 | AP189: 0 | AQ189: 0 | AS189: 0 | AT189: =IF(COUNTIF(AT190:AT191,"MEDIDO")>0,"MEDIDO","NÃO MEDIDO") -> NÃO MEDIDO
A190: Planilhado | C190: 14515.8.1.33U | D190: Retirada de entulho de obra com caçamba de aço tipo container com 5m³ de capacidade, inclusive carregamento, transporte e descarregamento. Custo por unidade de caçamba e inclui a taxa para descarga em locais autorizados (04.014.0095-0 EMOP) | E190: UN | F190: 14 | I190: 14 | J190: 312.31 | K190: 4372.34 | M190: 0 | O190: 0 | P190: 0 | R190: 0 | S190: 0 | U190: 0 | V190: 0 | X190: 0 | Y190: 0 | AA190: 0 | AB190: 0 | AD190: 0 | AE190: 0 | AG190: 0 | AH190: 0 | AJ190: 0 | AK190: 0 | AL190: 0 | AM190: 0 | AN190: 0 | AO190: 14 | AP190: 4372.34 | AQ190: 0 | AS190: 0 | AT190: NÃO MEDIDO
A191: Planilhado | C191: 14515.8.1.93U | D191: Disposição final de materiais e resíduos de obras em locais de operação e disposição final apropriados, autorizados e/ou licenciados pelos órgãos de licenciamento e de controle ambiental, medida por tonelada transportada, sendo comprovada conforme legislação pertinente (TC 09.05.0700 SCO/FGV) | E191: T | F191: 9.8 | I191: =F191+G191+H191 -> 9.8 | J191: 19.2 | K191: =ROUND((F191*$J191),2)+ROUND((G191*$J191),2)+ROUND((H191*$J191),2) -> 188.16 | M191: 0 | O191: 0 | P191: 0 | R191: 0 | S191: 0 | U191: 0 | V191: 0 | X191: 0 | Y191: 0 | AA191: 0 | AB191: 0 | AD191: 0 | AE191: 0 | AG191: 0 | AH191: 0 | AJ191: 0 | AK191: 0 | AL191: 0 | AM191: 0 | AN191: 0 | AO191: 9.8 | AP191: 188.16 | AQ191: 0 | AS191: 0 | AT191: NÃO MEDIDO
A192: Família | C192: 5 | D192: INFRA-ESTRUTURA | I192: 0 | K192: 0 | M192: 0 | O192: 0 | P192: 0 | R192: 0 | S192: 0 | U192: 0 | V192: 0 | X192: 0 | Y192: 0 | AA192: 0 | AB192: 0 | AD192: 0 | AE192: 0 | AG192: 0 | AH192: 0 | AJ192: 0 | AK192: 0 | AL192: 0 | AM192: 0 | AN192: 0 | AO192: 0 | AP192: 0 | AQ192: 0 | AS192: 0 | AT192: =IF(COUNTIF(AT193:AT207,"MEDIDO")>0,"MEDIDO","NÃO MEDIDO") -> NÃO MEDIDO
A193: Família | C193: 50200 | D193: SERVIÇOS GERAIS DE FUNDAÇÃO | I193: 0 | K193: 0 | M193: 0 | O193: 0 | P193: 0 | R193: 0 | S193: 0 | U193: 0 | V193: 0 | X193: 0 | Y193: 0 | AA193: 0 | AB193: 0 | AD193: 0 | AE193: 0 | AG193: 0 | AH193: 0 | AJ193: 0 | AK193: 0 | AL193: 0 | AM193: 0 | AN193: 0 | AO193: 0 | AP193: 0 | AQ193: 0 | AS193: 0 | AT193: =IF(COUNTIF(AT194:AT198,"MEDIDO")>0,"MEDIDO","NÃO MEDIDO") -> NÃO MEDIDO
A194: Planilhado | C194: 02.105.0000730.SER-U | D194: Base de brita corrida | E194: M3 | F194: 0.7 | I194: 0.7 | J194: 94.48 | K194: 66.14 | M194: 0 | O194: 0 | P194: 0 | R194: 0 | S194: 0 | U194: 0 | V194: 0 | X194: 0 | Y194: 0 | AA194: 0 | AB194: 0 | AD194: 0 | AE194: 0 | AG194: 0 | AH194: 0 | AJ194: 0 | AK194: 0 | AL194: 0 | AM194: 0 | AN194: 0 | AO194: 0.7 | AP194: 66.14 | AQ194: 0 | AS194: 0 | AT194: NÃO MEDIDO
A195: Planilhado | C195: 02240.8.1.3U | D195: Esgotamento água de subsolo, de infiltração ou alagamento, c/bomba elétrica 3,0HP, excl.energia elétrica | E195: H | F195: 220 | I195: 220 | J195: 0.28 | K195: 61.6 | M195: 0 | O195: 0 | P195: 0 | R195: 0 | S195: 0 | U195: 0 | V195: 0 | X195: 0 | Y195: 0 | AA195: 0 | AB195: 0 | AD195: 0 | AE195: 0 | AG195: 0 | AH195: 0 | AJ195: 0 | AK195: 0 | AL195: 0 | AM195: 0 | AN195: 0 | AO195: 220 | AP195: 61.6 | AQ195: 0 | AS195: 0 | AT195: =IF(COUNTIF(AT196:AT198,"MEDIDO")>0,"MEDIDO","NÃO MEDIDO") -> NÃO MEDIDO
A196: Planilhado | C196: 04.110.000048.SER-U | D196: Lastro de concreto, incluindo preparo e lançamento, exclusive betoneira | E196: M3 | F196: 0.6 | I196: 0.6 | J196: 580.42 | K196: 348.25 | M196: 0 | O196: 0 | P196: 0 | R196: 0 | S196: 0 | U196: 0 | V196: 0 | X196: 0 | Y196: 0 | AA196: 0 | AB196: 0 | AD196: 0 | AE196: 0 | AG196: 0 | AH196: 0 | AJ196: 0 | AK196: 0 | AL196: 0 | AM196: 0 | AN196: 0 | AO196: 0.6 | AP196: 348.25 | AQ196: 0 | AS196: 0 | AT196: NÃO MEDIDO
A197: Planilhado | C197: 05.109.100045.SER-U | D197: Enchimento de juntas de movimentação com elastômero à base de borracha de poliuretano com seção transversal 3x5 cm | E197: M | F197: 30.35 | I197: 30.35 | J197: 626.83 | K197: 19024.29 | M197: 0 | O197: 0 | P197: 0 | R197: 0 | S197: 0 | U197: 0 | V197: 0 | X197: 0 | Y197: 0 | AA197: 0 | AB197: 0 | AD197: 0 | AE197: 0 | AG197: 0 | AH197: 0 | AJ197: 0 | AK197: 0 | AL197: 0 | AM197: 0 | AN197: 0 | AO197: 30.35 | AP197: 19024.29 | AQ197: 0 | AS197: 0 | AT197: NÃO MEDIDO
A198: Planilhado | C198: 10.104.000055.SER | D198: Pintura asfáltica para impermeabilização em 2 demãos | E198: M2 | F198: 29.6 | I198: 29.6 | J198: 44.43 | K198: 1315.13 | M198: 0 | O198: 0 | P198: 0 | R198: 0 | S198: 0 | U198: 0 | V198: 0 | X198: 0 | Y198: 0 | AA198: 0 | AB198: 0 | AD198: 0 | AE198: 0 | AG198: 0 | AH198: 0 | AJ198: 0 | AK198: 0 | AL198: 0 | AM198: 0 | AN198: 0 | AO198: 29.6 | AP198: 1315.13 | AQ198: 0 | AS198: 0 | AT198: NÃO MEDIDO
A199: Família | C199: 50300 | D199: FORMAS | I199: 0 | K199: 0 | M199: 0 | O199: 0 | P199: 0 | R199: 0 | S199: 0 | U199: 0 | V199: 0 | X199: 0 | Y199: 0 | AA199: 0 | AB199: 0 | AD199: 0 | AE199: 0 | AG199: 0 | AH199: 0 | AJ199: 0 | AK199: 0 | AL199: 0 | AM199: 0 | AN199: 0 | AO199: 0 | AP199: 0 | AQ199: 0 | AS199: 0 | AT199: =IF(COUNTIF(AT200:AT200,"MEDIDO")>0,"MEDIDO","NÃO MEDIDO") -> NÃO MEDIDO
A200: Planilhado | C200: 04.107.000031.SER | D200: Forma para fundação com tábuas e sarrafos, 3 reaproveitamentos | E200: M2 | F200: 35 | I200: 35 | J200: 80.58 | K200: 2820.3 | M200: 0 | O200: 0 | P200: 0 | R200: 0 | S200: 0 | U200: 0 | V200: 0 | X200: 0 | Y200: 0 | AA200: 0 | AB200: 0 | AD200: 0 | AE200: 0 | AG200: 0 | AH200: 0 | AJ200: 0 | AK200: 0 | AL200: 0 | AM200: 0 | AN200: 0 | AO200: 35 | AP200: 2820.3 | AQ200: 0 | AS200: 0 | AT200: =IF(COUNTIF(AT201:AT206,"MEDIDO")>0,"MEDIDO","NÃO MEDIDO") -> NÃO MEDIDO
A201: Família | C201: 50400 | D201: ARMADURAS | I201: 0 | K201: 0 | M201: 0 | O201: 0 | P201: 0 | R201: 0 | S201: 0 | U201: 0 | V201: 0 | X201: 0 | Y201: 0 | AA201: 0 | AB201: 0 | AD201: 0 | AE201: 0 | AG201: 0 | AH201: 0 | AJ201: 0 | AK201: 0 | AL201: 0 | AM201: 0 | AN201: 0 | AO201: 0 | AP201: 0 | AQ201: 0 | AS201: 0 | AT201: =IF(COUNTIF(AT202:AT203,"MEDIDO")>0,"MEDIDO","NÃO MEDIDO") -> NÃO MEDIDO
A202: Planilhado | C202: 04.101.000120.SER-U | D202: Armadura de aço CA-50 para estruturas de concreto armado, Ø até 12,5 mm, corte, dobra e montagem (04.101.000020.SER PINI) | E202: KG | F202: 203 | I202: 203 | J202: 12.19 | K202: 2474.57 | M202: 0 | O202: 0 | P202: 0 | R202: 0 | S202: 0 | U202: 0 | V202: 0 | X202: 0 | Y202: 0 | AA202: 0 | AB202: 0 | AD202: 0 | AE202: 0 | AG202: 0 | AH202: 0 | AJ202: 0 | AK202: 0 | AL202: 0 | AM202: 0 | AN202: 0 | AO202: 203 | AP202: 2474.57 | AQ202: 0 | AS202: 0 | AT202: =IF(AS202<>0,"MEDIDO","NÃO MEDIDO") -> NÃO MEDIDO
... 315 more rows
